Cogmind - Beta 16 X2 @@@ ROGUE MODE // 2025.10.17 @ 00:17:58 Player: Terminus Result: Establishing 0b11! Performance ------------- Evolutions (9) 4500 Regions Visited (28) 5600 Robots Destroyed (1135) 5675 Value Destroyed (72219) 72219 Prototype IDs (371) 7420 Alien Tech Used (3) 600 Bonus (114266) 114266 TOTAL SCORE: 210280 Bonus ------- Triggered High Security 1500 High Alert Combat Kills 45543 Follower Combat Kills 2967 Network Hubs Disabled 200 Met Data Miner 300 Met Warlord at Base 500 MAIN.C Attacked Warlord 500 Built Enhanced Grunts 300 Met R17 at Cetus 500 Met R17 at Research 2000 Met Warlord at Research 2000 Scanned by Researcher 500 Destroyed Superfortress 15000 Destroyed MAIN.C Guards 500 Met MAIN.C 5000 Destroyed MAIN.C Shell 5000 Destroyed MAIN.C 10000 Met Architect 300 Destroyed A8 300 Destroyed A6 400 Destroyed A5 500 Destroyed A4 700 Destroyed A3 800 Destroyed A2 1000 Destroyed Architect 15000 Win 3000 Friendly Fire -44 Cogmind --------- Core Integrity 320/1600 Matter 278/300 Energy 1329/1337 System Corruption 6% Temperature Cool (28) Movement Walking (83) Location 0b11 Command Parts ------- > --- POWER (3) -------- ZP-Chain Reactor > --- PROPULSION (6) --- Biometal-Gravjet Exoskeleton > --- UTILITY (11) ----- Armored Scrap Engine Experimental Cooling System Concept Thermoelectric Network Concept Antigrav Storage Unit Experimental Targeting Computer Experimental Targeting Computer Experimental Core Analyzer Experimental Core Analyzer Mini Quantum Capacitor AEGIS Remote Shield > --- WEAPON (5) ------- Hvy. Kinetic Dispersion Construct/C > --- INVENTORY (25) --- Quantum Reactor Experimental Biometal Leg Experimental Biometal Leg Cooled Antigrav System Desublimator Experimental Cooling System Concept Thermoelectric Network Concept Chromion Battery (800) Concept Chromion Battery (800) Concept NT7 Matterbank (750) Experimental Targeting Computer Experimental Core Analyzer Experimental Weapon Cycler Experimental Phase Shifter Experimental Phase Shifter Concept Energy Mantle Concept Matter Streamer Enhanced Hardcell Cannon Enhanced Gamma Bomb Array Peak State ------------ > --- POWER ------------ Concept Zero-point Core ZP-Chain Reactor > --- PROPULSION ------- Biometal-Gravjet Exoskeleton > --- UTILITY ---------- Armored Scrap Engine Concept Antigrav Storage Unit Long-range Sensor Array Advanced Signal Interpreter Experimental Targeting Computer Experimental Targeting Computer Experimental Core Analyzer Concept Cloak Mesh Experimental Force Field Concept Impact Drone Bay > --- WEAPON ----------- Enhanced Nova Cannon Concept Tiamat Rocket Array Hvy. Kinetic Dispersion Construct/C > --- INVENTORY -------- Concept Zero-point Core Concept Phasing Heat Sink Concept Thermoelectric Network Concept Thermoelectric Network Concept Thermoelectric Network Concept Chromion Battery Concept Chromion Battery Concept NT7 Matterbank Experimental Targeting Computer Experimental Core Analyzer Mini Quantum Capacitor Mini Quantum Capacitor Advanced Weapon Cycler Concept Energy Mantle Concept Energy Mantle Concept Matter Streamer Concept Impact Drone Bay High-powered Transdimensional Reconstructor Enhanced Gamma Rifle Vortex Rail Nova Cannon Heavy Linear Accelerator Compact Tesla Bomb Launcher [Rating: 273] Favorites ----------- Power Constructs Engine Improved Ion Engine Power Core Concept Zero-point Core Reactor Constructs Propulsion Constructs Treads Light Treads Leg Constructs Hover Unit Cooled Aerolev Unit Flight Unit Cooled Impulse Thruster Utility Experimental Targeting Computer Device Armored Scrap Engine Storage Concept Antigrav Storage Unit Processor Experimental Targeting Computer Hackware Hacking Suite Protection Light Armor Plating Weapon Constructs Energy Gun Small Laser Energy Cannon Constructs Ballistic Gun Enhanced Autogun Ballistic Cannon Heavy Hardcell Cannon Launcher Compact Tesla Bomb Launcher Build | -11 -10 -10 -8 -8 -8 -6 -6 -6 -6 -5 -5 -5 -5 -5 -4 -4 -4 -4 -4 -4 -3 -3 -2 -2 -2 -1 -1 -1 ------- Run | Yrd Mat Sub Mat Sto Rec Fac Low Low Dat Pro Fac Upp Upp War Pro Fac Ext Cet Arc Hub Res Tes Res Qua Frg Acc Com Ac0 Slots Evolved 18 | . . . 4 . . 4 . . . . 2 . . . . 2 . . . . 2 . 2 . . 2 . . Power 2 | . . . . . . . . . . . . . . . . 1 . . . . . . . . . 1 . . Propulsion 4 | . . . 2 . . 1 . . . . . . . . . . . . . . 1 . . . . . . . Utility 9 | . . . 1 . . 3 . . . . 1 . . . . 1 . . . . 1 . 1 . . 1 . . Weapon 3 | . . . 1 . . . . . . . 1 . . . . . . . . . . . 1 . . . . . Parts Attached 302 | 6 8 10 39 12 6 13 5 2 . 3 9 3 4 15 1 5 10 3 . 3 23 14 1 14 35 21 23 14 Power 13 | 1 . 1 3 1 . 1 4 . . . . . . . . 1 . . . . . . . . . 1 . . Engine 9 | 1 . 1 3 1 . . 3 . . . . . . . . . . . . . . . . . . . . . Core 3 | . . . . . . 1 1 . . . . . . . . . . . . . . . . . . 1 . . Reactor 1 | . . . . . . . . . . . . . . . . 1 . . . . . . . . . . . . Propulsion 34 | 2 2 2 12 2 . 1 . . . . 1 . . 6 . 1 2 . . . 3 . . . . . . . Treads 19 | 2 2 2 12 . . . . . . . . . . 1 . . . . . . . . . . . . . . Leg 5 | . . . . . . . . . . . . . . 2 . . 2 . . . 1 . . . . . . . Wheel . | . . . . . . . . . . . . . . . . . . . . . . . . . . . . . Hover 6 | . . . . 1 . 1 . . . . 1 . . 1 . 1 . . . . 1 . . . . . . . Flight 4 | . . . . 1 . . . . . . . . . 2 . . . . . . 1 . . . . . . . Utility 163 | 1 4 2 8 4 3 11 1 2 . 3 4 3 3 3 1 1 4 2 . 3 13 10 . 10 28 13 17 9 Device 91 | . 1 . 3 1 2 7 1 2 . 1 2 3 1 1 . . 3 . . 1 7 6 . 10 13 7 15 4 Storage 10 | 1 2 . 1 . 1 1 . . . . . . . . . 1 . . . 1 . 1 . . 1 . . . Processor 35 | . . . . . . 2 . . . 1 1 . . . 1 . . 1 . . 6 2 . . 9 5 2 5 Hackware 4 | . . . . . . 1 . . . . . . . 1 . . . . . . . 1 . . . 1 . . Protection 23 | . 1 2 4 3 . . . . . 1 1 . 2 1 . . 1 1 . 1 . . . . 5 . . . Artifact . | . . . . . . . . . . . . . . . . . . . . . . . . . . . . . Weapon 92 | 2 2 5 16 5 3 . . . . . 4 . 1 6 . 2 4 1 . . 7 4 1 4 7 7 6 5 Energy Gun 30 | 1 . 4 5 3 1 . . . . . . . . 5 . . . . . . 1 1 1 1 5 . . 2 Energy Cannon 22 | . . 1 1 1 1 . . . . . 1 . 1 . . . 1 . . . 3 2 . 2 . 3 4 1 Ballistic Gun 25 | 1 . . 8 1 1 . . . . . 2 . . 1 . 2 3 1 . . 2 . . . 1 . 1 1 Ballistic Cannon 6 | . . . 1 . . . . . . . . . . . . . . . . . . . . . 1 3 . 1 Launcher 9 | . 2 . 1 . . . . . . . 1 . . . . . . . . . 1 1 . 1 . 1 1 . Special Weapon . | . . . . . . . . . . . . . . . . . . . . . . . . . . . . . Impact Weapon . | . . . . . . . . . . . . . . . . . . . . . . . . . . . . . Slashing Weapon . | . . . . . . . . . . . . . . . . . . . . . . . . . . . . . Piercing Weapon . | . . . . . . . . . . . . . . . . . . . . . . . . . . . . . Special Melee Weapon . | . . . . . . . . . . . . . . . . . . . . . . . . . . . . . Unidentified Prototypes 69 | . . . 5 3 1 1 . . . . . . . 7 1 . . 1 . 1 9 10 . 2 16 1 4 7 Corrupted Parts 3 | . . 1 . 1 . . . . . . . . . . 1 . . . . . . . . . . . . . System Corruption 10 | . . 5 . 4 . . . . . . . . . . 1 . . . . . . . . . . . . . Parts Lost 60 | . . 4 11 3 . 2 3 1 . . 2 . 1 . 1 1 . 1 . . 1 . 1 4 9 2 5 8 Power 8 | . . 1 1 1 . . 3 1 . . 1 . . . . . . . . . . . . . . . . . Propulsion 4 | . . 1 2 . . . . . . . . . . . . . . . . . . . . . . . . 1 Utility 37 | . . 1 5 1 . 2 . . . . 1 . . . . 1 . 1 . . 1 . 1 3 9 2 4 5 Weapon 11 | . . 1 3 1 . . . . . . . . 1 . 1 . . . . . . . . 1 . . 1 2 Highest Loss Streak 5 | . . 3 5 1 . 1 2 1 . . 1 . 1 . 1 1 . 1 . . 1 . 1 1 2 1 2 2 To Critical Strikes 1 | . . . . . . . . . . . . . . . . . . . . . . . . . . . . 1 Average Backups 20 | . 11 14 14 18 19 22 22 24 25 24 23 24 24 23 23 20 18 18 19 18 17 18 17 18 21 23 23 22 Power 1 | . 1 . . . . 2 1 1 1 1 1 1 2 2 2 1 1 1 1 1 1 1 1 1 . 1 1 1 Propulsion . | . 2 2 1 3 3 2 . . . . 1 2 1 . 1 . . . . . . . . . . . . 1 Utility 11 | . 2 4 3 4 8 11 14 16 17 16 14 15 16 16 15 13 13 11 10 10 10 10 10 9 14 14 14 12 Weapon 6 | . 5 6 9 10 6 5 7 7 7 7 6 5 3 4 4 4 4 6 8 7 6 6 5 5 5 6 7 6 Tool/Special . | . . . . . . . . . . . . . . . . . . . . . . . . . . . . . Unused Backups 149 | . 1 . 6 2 11 11 3 . . . 6 1 4 9 2 2 7 3 . 4 6 1 2 7 14 7 11 29 Power 9 | . . . . . . . . . . . . 1 . 3 . . . . . . . . . . 1 . 1 3 Propulsion 27 | . . . 2 . 5 5 1 . . . 2 . 2 1 2 . . . . . 1 . 1 2 . . . 3 Utility 48 | . 1 . . 1 1 4 . . . . 3 . . 3 . 2 5 3 . . 2 1 . 2 5 2 3 10 Weapon 64 | . . . 4 1 5 2 2 . . . 1 . 2 2 . . 2 . . 4 3 . 1 3 7 5 7 13 Tool/Special 1 | . . . . . . . . . . . . . . . . . . . . . . . . . 1 . . . Average Slot Usage (%) 62 | . 99 99 97 99 65 53 50 53 53 52 57 57 57 57 58 56 60 57 57 56 55 56 57 58 56 59 58 56 Engine 3 | . 14 13 8 9 9 2 2 3 6 6 5 4 5 5 5 5 4 . . . . . . . . . . . Core 1 | . . . . . . 3 . 2 . . . . . . . . . . . . . . . . . 3 4 1 Reactor 2 | . . . . . . . . . . . . . . . . 1 4 5 5 5 4 4 4 4 3 4 4 4 Treads 5 | . 28 28 34 36 16 . 2 . . . 2 5 5 . . . . . . . . . . . 2 . . . Leg 2 | . . . . . 1 5 2 6 6 6 . . . 1 . . 3 . . . . . . 1 1 4 3 3 Device 14 | . 6 . 8 11 9 13 13 13 13 12 14 14 12 11 11 13 15 15 15 14 13 13 16 13 17 16 19 19 Storage 5 | . 14 14 9 9 9 6 6 6 6 6 5 5 5 5 5 5 5 5 5 5 4 4 4 4 4 4 4 4 Processor 9 | . . . . . . 5 6 6 6 6 5 5 5 5 5 10 10 10 10 10 13 14 13 13 10 19 16 15 Hackware 2 | . . . . . . 5 6 6 6 6 5 5 5 5 5 5 5 5 5 5 4 4 4 4 2 . . . Protection 2 | . 7 14 9 6 3 . . . . . 1 1 3 5 5 1 . . . . . . . 3 3 . . . Energy Gun 2 | . 14 16 10 13 6 . . . . . . . . . . . . . . . . . 1 1 2 . . . Energy Cannon 2 | . . 1 . . 2 . . . . . 7 11 9 6 5 . . . . . 1 . . 5 4 3 2 5 Ballistic Gun 2 | . 9 8 16 12 3 . . . . . 1 . . . . 1 4 5 5 4 2 2 . . . . . . Ballistic Cannon 2 | . . . . . 4 6 6 6 6 6 . . . . 5 5 5 5 5 4 3 4 3 1 . 4 3 1 Peak Build Rating 273 | 6 8 11 35 37 50 73 75 68 67 68 85 84 89 118 118 130 136 131 130 133 155 164 187 197 258 273 270 265 Average Rating 146 | 4 7 9 26 34 39 59 65 66 66 66 78 83 83 97 111 116 125 128 130 129 143 157 175 189 212 257 251 245 On Entrance 105 | . 6 8 11 35 34 45 69 67 67 66 67 79 84 88 118 109 130 126 130 130 133 155 159 186 178 252 260 265 Avg Prop Armor Cover (%) . | 15 . . . . . . . . . . . . . . . . . . . . . . . . . . . . Naked Turns . | . . . . . . . . . . . . . . . . . . . . . . . . . . . . . Heaviest Build 198 | 12 32 37 60 68 104 100 108 107 102 103 117 119 123 129 129 120 96 89 88 102 115 114 121 151 140 170 198 197 Greatest Support 316 | 40 40 40 88 85 85 76 93 84 84 84 84 73 97 137 137 96 131 116 116 116 217 162 162 157 190 190 275 316 Greatest Overweight (x) 4 | . 1 1 . . 4 1 1 1 1 1 2 1 1 1 1 1 . . . . . . 1 1 . . 1 . Average Overweight (x) . | . . . . . . 1 . 1 1 1 1 1 1 . . . . . . . . . . . . . . . Largest Inventory Capacity 25 | 8 15 15 20 20 25 25 25 25 25 25 25 25 25 25 25 25 20 20 20 20 20 20 20 20 25 25 25 25 Average Capacity 22 | 6 13 15 15 20 24 25 25 25 25 25 25 25 25 25 25 23 20 20 20 20 20 20 20 20 22 25 25 25 Most Carried 25 | 2 15 15 20 20 24 25 25 25 25 25 25 25 25 25 25 25 20 20 20 20 20 20 20 20 25 25 25 25 Average Carried 21 | 1 11 14 14 19 20 22 22 24 25 24 23 24 24 24 24 21 19 19 20 19 18 19 18 19 22 24 23 22 Final Capacity 25 | 8 15 15 20 20 25 25 25 25 25 25 25 25 25 25 25 20 20 20 20 20 20 20 20 20 25 25 25 25 Final Carried 25 | 2 15 14 20 20 18 25 24 25 25 25 25 25 24 25 23 20 20 20 20 18 20 20 18 19 25 25 25 19 Scrap Engine Consumption 351 | . . . . . 34 20 11 2 . 2 9 4 9 19 4 2 16 7 2 2 24 4 14 24 43 32 41 26 Constructs Created 4 | . . . . . 2 . . 1 . . . 1 . . . . . . . . . . . . . . . . Constructs Modified 156 | . . . . . 13 6 6 . . . 4 1 2 10 1 . 8 . . 2 12 . 11 14 16 11 24 15 Class Distribution -------------------- 34% | Scavenger-Construct 27% | Construct 11% | Hacker-Construct 10% | Commander-Construct 5% | Scavenger-Tank 5% | Mutant Dominant Class ---------------- Mutant | -10/Materials Mutant | -10/Subcaves Scavenger-Tank | -8/Materials Scavenger-Tank | -8/Storage Commander-Construct | -8/Recycling Construct | -6/Factory Construct | -6/Lower Caves Construct | -6/Lower Caves Construct | -6/Data Miner Construct | -5/Proximity Caves Construct | -5/Factory Construct | -5/Upper Caves Construct | -5/Upper Caves Construct | -5/Warlord Construct | -4/Proximity Caves Construct | -4/Factory Commander-Construct | -4/Extension Commander-Construct | -4/Cetus Commander-Construct | -4/Archives Commander-Construct | -4/Hub_04(d) Construct | -3/Research Hacker-Construct | -3/Testing Hacker-Construct | -2/Research Hacker-Construct | -2/Quarantine Hacker-Construct | -2/Protoforge Scavenger-Construct | -1/Access Scavenger-Construct | -1/Command Scavenger-Construct | -1/Access_0 Resources | -11 -10 -10 -8 -8 -8 -6 -6 -6 -6 -5 -5 -5 -5 -5 -4 -4 -4 -4 -4 -4 -3 -3 -2 -2 -2 -1 -1 -1 ----------- Run | Yrd Mat Sub Mat Sto Rec Fac Low Low Dat Pro Fac Upp Upp War Pro Fac Ext Cet Arc Hub Res Tes Res Qua Frg Acc Com Ac0 Matter Collected 22417 | 180 385 359 1332 505 429 1691 402 123 . 240 455 388 379 426 40 80 595 140 9 186 1925 1075 456 1165 5076 2030 1878 468 Remotely 3644 | . . . . . . . . . . . . 66 . . . . . . . . 206 . . . 1606 1520 246 . Salvage Created 74053 | . 582 247 2393 1141 458 1988 214 83 . 150 1008 102 899 44 154 409 1132 64 . 302 3729 1682 754 2529 9059 25288 16143 3499 Parts 2555 | . 56 14 125 72 18 86 10 3 . 10 31 3 18 1 5 11 50 3 . 10 145 106 33 115 432 486 523 189 Haulers Intercepted 22 | . 2 . 6 3 . 1 . . . . . . 1 . . . . . . 1 2 1 . 2 . 3 . . Recyclers Shooed 11 | . . . 1 1 . 3 . . . . 4 . . . . 1 . . . . . . . . . 1 . . Parts Field Recycled . | . . . . . . . . . . . . . . . . . . . . . . . . . . . . . Retrieved Matter . | . . . . . . . . . . . . . . . . . . . . . . . . . . . . . Parts Self-Destructed 41 | . . 2 . . . . 5 7 . 9 . 1 16 . 1 . . . . . . . . . . . . . Prevented . | . . . . . . . . . . . . . . . . . . . . . . . . . . . . . Parts Restored 5 | . . . . . . . . . . . . . . . . . . . . . . . . . 5 . . . Faulty 5 | . . . . . . . . . . . . . . . . . . . . . . . . . 5 . . . Kills | -11 -10 -10 -8 -8 -8 -6 -6 -6 -6 -5 -5 -5 -5 -5 -4 -4 -4 -4 -4 -4 -3 -3 -2 -2 -2 -1 -1 -1 ------- Run | Yrd Mat Sub Mat Sto Rec Fac Low Low Dat Pro Fac Upp Upp War Pro Fac Ext Cet Arc Hub Res Tes Res Qua Frg Acc Com Ac0 Combat Hostiles Destroyed 927 | . 15 9 36 21 3 31 2 2 . 7 9 . 18 . 4 1 12 1 . 3 48 20 13 28 109 301 196 38 Melee 1 | . . . . . . . . . . . . . . . . . . . . . . . . . . . 1 . Guns 67 | . 4 6 33 21 3 . . . . . . . . . . . . . . . . . . . . . . . Cannons 733 | . . . . . . 27 2 2 . 7 9 . 15 . 4 1 12 1 . 3 44 17 10 23 95 252 172 37 AOE 100 | . 11 3 3 . . 4 . . . . . . 3 . . . . . . . 1 2 3 3 7 42 18 . Classes Destroyed 33 | . 9 2 3 . 1 1 3 . . 1 1 . 1 . . . . . . . 2 1 . 1 5 2 . . Worker 43 | . 3 . 2 2 . 7 . . . . 1 . . . . . . . . 2 1 3 . 4 . 14 4 . Builder 31 | . 1 . 1 3 . 4 . . . . 2 . . . . . . . . . . 1 . 1 6 12 . . Tunneler 1 | . . . . . . . . . . . . . . . . . . . . . . . . . . 1 . . Hauler 22 | . 2 . 6 3 . 1 . . . . . . 1 . . . . . . 1 2 1 . 2 . 3 . . Recycler 33 | . 1 . 6 1 1 3 . . . . 4 . . . . 2 1 . . . . 2 . . . 9 3 . Carrier 17 | . . . . . . . . . . . . . . . . . . . . . . . . . 1 16 . . Minesweeper 2 | . . . . . . . 1 . . . . 1 . . . . . . . . . . . . . . . . Mechanic 36 | . 1 . . 1 . 1 . . . . . . . 1 . 1 . . . . . . . 1 2 15 13 . Operator 8 | . 1 . . 1 . . . . . . . . . . . 1 1 . . . . . . . 1 1 2 . Drone 7 | . . . . . . . . . . 2 . . . . . . . . . . . . . . 5 . . . Watcher 30 | . 2 . 5 1 . 2 . . . . 2 . . . . . 1 . . . 2 2 . 2 . 6 5 . Swarmer 71 | . 3 1 8 7 . 14 . . . 4 . . 5 . 4 . . . . . 1 3 8 5 5 3 . . Cutter 16 | . . . . . . . . . . . . . . . . . . . . . . . . . . 10 6 . Saboteur 28 | . . . . . . . . . . . . . . . . . . . . . . . . . . 15 13 . Grunt 247 | . 12 . 17 5 . 11 . . . . 1 . 9 . . . 1 . . 2 13 4 3 4 25 85 55 . Brawler 34 | . . . 1 . . . . . . . . . 1 . . . 1 . . . 1 . . . 1 21 8 . Duelist 40 | . . . . . . . . . . . . . 2 . . . . . . 1 1 . . . 5 18 13 . Protector 34 | . . . . . . . . . . . . . . . . . . . . . . . . . 2 21 11 . Researcher 6 | . . . . . . . . . . . . . . . . . . . . . . 1 . . 5 . . . Sentry 63 | . . 1 8 9 1 1 1 . . . 1 . 2 . . . 9 . . . 2 . 1 . 12 9 6 . Demolisher 5 | . . . . . 1 . . . . . . . . . . . . . . . 2 . . . . 1 1 . Specialist 6 | . . . . . . . . . . . 2 . . . . . . . . . . . . . . 2 2 . Hunter 49 | . . . 1 . 1 1 . 2 . . 2 . . . . . . . . . 10 . . 6 . 19 7 . Programmer 129 | . . . . . . 4 . . . 1 3 . . . . . . . . . 4 12 . 12 17 45 31 . Heavy 4 | . . . 1 . . . . . . . . . . . . . . . . . . . . . . 1 2 . Behemoth 9 | . . . . . . . 1 . . . . . . . . 1 1 . . . 1 . 1 . . 3 1 . Cetus Guard 1 | . . . . . . . . . . . . . . . . . . 1 . . . . . . . . . . M Guard 2 | . . . . . . . . . . . . . . . . . . . . . . . . . . . 2 . Enhanced Grunt 22 | . . . . . . . . . . . . . . . . . . . . . . . . . . . . 22 Enhanced Sentry 1 | . . . . . . . . . . . . . . . . . . . . . . . . . . . . 1 Enhanced Hunter 8 | . . . . . . . . . . . . . . . . . . . . . . . . . . . . 8 Hotshot 8 | . . . . . . . . . . . . . . . . . . . . . . . . . 8 . . . Decapitator 11 | . . . . . . . . . . . . . . . . . . . . . . . . . 11 . . . Immortal 7 | . . . . . . . . . . . . . . . . . . . . . . . . . 7 . . . Combat Programmer 2 | . . . . . . . . . . . . . . . . . . . . . . . . . . . 2 . Investigator 2 | . . . . . . . . . . . . . . . . . . . . . . . . . . 1 1 . Striker 50 | . . . . . . . . . . . . . . . . . . . . . 10 . . . 1 26 13 . Executioner 46 | . . . . . . . . . . . . . . . . . . . . . 3 . . . 1 21 21 . Alpha 7 2 | . . . . . . . . . . . . . . . . . . . . . . . . . 2 . . . Fortress 1 | . . . . . . . . . . . . . . . . . . . . . . . . 1 . . . . V-Series 6 | . . . . . . . . . . . . . . . . . . . . . . . . . 6 . . . Protovariant H 1 | . . . . . . . . . . . . . . . . . . . . . . 1 . . . . . . Subdweller 8 | . . 7 . . 1 . . . . . . . . . . . . . . . . . . . . . . . Decomposer 3 | . . . . . . . 2 . . . . . 1 . . . . . . . . . . . . . . . Samaritan 3 | . . . . . . . 1 . . . . 2 . . . . . . . . . . . . . . . . Guerrilla 1 | . . . . . . . . . . . . . . . . . . . . . . . . . . 1 . . Best Kill Streak 90 | . 9 2 6 8 2 13 1 2 . 5 4 1 7 1 4 3 4 1 . 5 7 4 6 5 15 90 38 5 Combat Bots Only 68 | . 5 2 4 8 1 5 1 2 . 5 2 . 7 . 4 1 3 1 . 3 7 4 6 4 11 68 38 5 Max Kills in Single Turn 10 | . 3 1 2 2 1 5 1 1 . 2 1 1 2 1 1 1 1 1 . 2 2 2 2 2 3 10 6 1 Gunslinging 1 | . . . 1 . . . . . . . . . . . . . . . . . . . . . . . . . Exploded 7 | . 2 1 1 . . 2 . . . . . . 2 . . . . . . . 1 1 2 2 3 7 6 . Melee 1 | . . . . . . . . . . . . . . . . . . . . . . . . . . . 1 . Uniques/NPCs Destroyed 10 | . . . . . . . . . . . . . . . . . . . . . . . . . 1 . 2 7 Superfortress (-2/Protoforge) MAIN.C Shell (-1/Command) MAIN.C (-1/Command) A8 (-1/Access_0) A6 (-1/Access_0) A2 (-1/Access_0) A5 (-1/Access_0) A4 (-1/Access_0) Architect (-1/Access_0) A3 (-1/Access_0) Combat | -11 -10 -10 -8 -8 -8 -6 -6 -6 -6 -5 -5 -5 -5 -5 -4 -4 -4 -4 -4 -4 -3 -3 -2 -2 -2 -1 -1 -1 -------- Run | Yrd Mat Sub Mat Sto Rec Fac Low Low Dat Pro Fac Upp Upp War Pro Fac Ext Cet Arc Hub Res Tes Res Qua Frg Acc Com Ac0 Hostile Shots Fired 3256 | . 41 53 181 81 3 168 57 30 . 32 69 . 69 19 20 25 26 4 . 2 319 65 53 154 365 409 635 376 Missed 977 | . 13 16 57 19 1 42 12 6 . 8 14 . 22 9 8 6 5 1 . 1 144 28 19 56 135 115 130 110 Deflected 152 | . . . . . . . . . . . . . . . . . . . . . . . . . 8 68 59 17 Hits 2279 | . 28 37 124 62 2 126 45 24 . 24 55 . 47 10 12 19 21 3 . 1 175 37 34 98 230 294 505 266 Melee 68 | . . . . . . . . . . . . . . . . . . . . . 11 . . . 27 5 10 15 Projectile 2211 | . 28 37 124 62 2 126 45 24 . 24 55 . 47 10 12 19 21 3 . 1 164 37 34 98 203 289 495 251 AOE 38 | . . . . . . . . . . . . . . 5 . . . . . . 1 . . . 14 11 7 . Critical Strikes 172 | . 2 1 8 4 . 4 2 . . . 1 . 1 3 . 2 1 3 . . 9 3 . 3 29 13 53 30 Actively Blocked 6 | . . . . . . . . . . . . . . . . . . . . . . . . . 6 . . . Damage Taken 38784 | . 341 671 2217 875 51 2186 881 454 . 236 944 . 827 490 175 379 399 114 . 83 2925 753 785 2017 4537 3880 8313 4251 Core 3740 | . 62 49 254 132 . 259 84 59 . 14 97 . 92 68 18 35 . 36 . . 556 143 62 156 382 237 578 367 Absorbed by Shields 22124 | . . . . . . 6 . . . . . . 86 69 . 16 142 41 . 29 1337 95 254 853 4436 2883 7691 4186 Reduced by Siege Mode 494 | . . . . . . . . . . . . . . . . . . . . . . . . . 23 . 471 . Redirected to Shielding 557 | . . . . . . . . . . . . . . . . . . . . . . . . . 557 . . . Regen/Repaired (Parts) 21071 | . . . . 138 . 1421 588 . . . 806 209 301 368 14 . 425 . . 94 1066 . 1191 1590 1763 3343 6187 1567 Core Remaining (%) 57 | 100 . 55 . . 29 . . . . 51 . . . . 72 . . . . 93 . 46 . . 53 . . 20 Volleys Fired 2666 | . 58 56 134 59 62 88 16 10 . 15 47 29 38 18 16 15 42 5 . 14 157 77 44 109 397 401 491 268 Largest 3 | . 2 2 3 3 3 1 1 1 . 1 1 1 1 1 1 1 1 1 . 1 2 1 1 2 1 1 1 1 Hottest 264 | . 60 120 180 151 151 223 238 238 . 238 154 154 154 224 128 128 128 85 . 85 198 85 85 226 120 264 264 264 Shots Fired 3057 | . 89 66 368 176 74 88 16 10 . 15 47 29 38 18 16 15 42 5 . 14 161 78 44 129 375 401 475 268 Gun 672 | . 67 47 353 172 27 . . . . . . . . . . . . . . . 1 1 . 1 3 . . . Cannon 2291 | . . 5 9 4 47 88 16 10 . 15 47 29 34 18 16 15 42 5 . 14 151 73 41 123 363 388 470 268 Launcher 94 | . 22 14 6 . . . . . . . . . 4 . . . . . . . 9 4 3 5 9 13 5 . Special . | . . . . . . . . . . . . . . . . . . . . . . . . . . . . . Kinetic 1691 | . 37 . 228 80 18 88 16 10 . 15 . . . 11 16 15 42 5 . 14 72 63 . 41 76 370 447 27 Thermal 1128 | . 30 45 134 96 46 . . . . . 47 29 34 . . . . . . . 80 . 41 83 199 . 23 241 Explosive 64 | . 22 14 6 . . . . . . . . . 4 . . . . . . . . . . . . 13 5 . Electromagnetic 89 | . . 7 . . 10 . . . . . . . . . . . . . . . 9 15 3 5 40 . . . Entropic 85 | . . . . . . . . . . . . . . 7 . . . . . . . . . . 60 18 . . Robot Hit Streak 47 | . 13 28 20 12 10 15 12 8 . 5 9 17 21 8 3 13 21 9 . 11 11 6 10 47 20 31 45 24 Robot Miss Streak 10 | . 4 3 4 8 3 3 4 2 . 10 3 . 3 3 1 1 2 . . 1 3 3 2 2 8 3 2 4 Penetration Max 2 | . . . . . . 1 . . . . . . . . 1 . 1 . . . 1 1 . . 1 2 2 . Secondary Targets 7 | . . . 5 2 . . . . . . . . . . . . . . . . . . . . . . . . Max Gunslinging Chain 1 | . . . 1 1 . . . . . . . . . . . . . . . . . . . . . . . . Capacitor 391 | . . . . . . . . . . . . . . . . . . . . . . . . . 127 2 39 223 Shots Hit Robots 2042 | . 53 33 234 115 23 67 16 10 . 9 39 3 31 10 6 13 32 5 . 8 100 38 25 93 217 283 378 201 Core Hits 1501 | . 49 20 92 78 18 57 10 6 . 7 32 6 41 1 3 5 18 3 . 6 50 19 13 45 107 447 289 79 Critical Kills 27 | . . . 2 . . . . . . . . . . . . . 1 . . . 1 1 . 2 1 18 . 1 Critical Parts Destroyed 39 | . . . 2 . . . . . . . . . . 1 1 . 1 . . . 3 2 . . 5 23 . 1 Critical Strikes 88 | . . . 7 3 . . . . . . . . . 1 1 . 2 . . . 4 3 3 3 12 47 . 2 Burn 16 | . . . 3 3 . . . . . . . . . . . . . . . . . . 3 1 6 . . . Meltdown 2 | . . . . . . . . . . . . . . . . . . . . . . . . 2 . . . . Destroy 70 | . . . 4 . . . . . . . . . . 1 1 . 2 . . . 4 3 . . 6 47 . 2 Melee Attacks . | . . . . . . . . . . . . . . . . . . . . . . . . . . . . . Impact . | . . . . . . . . . . . . . . . . . . . . . . . . . . . . . Slashing . | . . . . . . . . . . . . . . . . . . . . . . . . . . . . . Piercing . | . . . . . . . . . . . . . . . . . . . . . . . . . . . . . Sneak Attacks . | . . . . . . . . . . . . . . . . . . . . . . . . . . . . . Combat Hostiles . | . . . . . . . . . . . . . . . . . . . . . . . . . . . . . Follow-up Attacks . | . . . . . . . . . . . . . . . . . . . . . . . . . . . . . Damage Inflicted 380767 | . 1601 1077 4704 2085 419 6232 1096 540 . 438 2996 288 2801 819 558 1019 2154 251 . 1192 12433 5658 3781 9540 51567 157295 81000 29223 Guns 7396 | . 443 389 4129 2001 366 . . . . . . . . . . . . . . . . . . 31 37 . . . Cannons 346318 | . . . 82 49 53 4989 1096 540 . 438 2949 288 2286 819 558 1019 2154 251 . 614 11461 5483 3594 9196 50975 144377 73824 29223 Explosions 26905 | . 1119 688 487 . . 1234 . . . . . . 515 . . . . . . 578 972 175 187 313 555 12906 7176 . Melee . | . . . . . . . . . . . . . . . . . . . . . . . . . . . . . Ramming 148 | . 39 . 6 35 . 9 . . . . 47 . . . . . . . . . . . . . . 12 . . Kinetic 258652 | . 218 . 2457 805 124 4989 1096 540 . 438 . . . 427 558 1019 2154 251 . 614 5702 5330 . 4515 16004 137843 70965 2603 Thermal 71996 | . 225 312 1754 1245 121 52 . . . . 2949 288 2286 . . . . . . 159 6095 . 3594 4712 18725 . 2859 26620 Explosive 23874 | . 1119 688 487 . . 983 . . . . . . 515 . . . . . . . . . . . . 12906 7176 . Electromagnetic 3916 | . . 77 . . 174 199 . . . . . . . . . . . . . 419 636 328 187 313 1583 . . . Impact . | . . . . . . . . . . . . . . . . . . . . . . . . . . . . . Slashing . | . . . . . . . . . . . . . . . . . . . . . . . . . . . . . Piercing . | . . . . . . . . . . . . . . . . . . . . . . . . . . . . . Entropic 22181 | . . . . . . . . . . . . . . 392 . . . . . . . . . . 15255 6534 . . Highest Corruption 46 | . 4 9 1 5 6 4 4 4 4 5 1 1 1 1 1 . 1 1 1 2 7 19 . 11 38 14 46 6 Average Corruption 9 | . 3 7 1 3 5 2 4 4 4 4 1 1 1 1 1 . 1 1 1 1 6 11 . 5 28 6 18 3 Corruption Purged 67 | . . . . . . . . . . . . . . . . . . . . . . . . . . 10 57 . Corruption Blocked . | . . . . . . . . . . . . . . . . . . . . . . . . . . . . . Effects 1057 | . 22 21 5 26 85 18 32 11 6 13 . 7 3 . . . 5 3 1 1 84 46 . 40 173 114 294 47 Message Errors 243 | . 5 4 1 7 22 5 8 4 1 3 . 2 1 . . . 1 1 . 1 19 9 . 8 34 33 65 9 Matter Fused 235 | . 5 5 1 4 24 3 9 3 3 2 . . . . . . 3 1 . . 16 8 . 12 36 22 63 15 Heat Flow Errors 139 | . 1 5 . 4 9 1 3 2 . 2 . 1 . . . . 1 1 1 . 10 9 . 1 28 14 39 7 Energy Discharges 131 | . 3 3 1 3 7 4 4 1 . 2 . 1 2 . . . . . . . 14 8 . 3 16 15 37 7 Parts Rejected 9 | . . . . . . 1 . . . . . . . . . . . . . . 1 1 . . 3 . 3 . Parts Fused 17 | . . 1 . 1 . . . . . . . . . . . . . . . . 3 1 . 1 1 4 5 . Data Loss (minor) 125 | . 6 1 1 6 12 3 4 1 1 3 . 2 . . . . . . . . 10 6 . 6 13 10 37 3 Data Loss (major) 52 | . 1 . . . 7 . 2 . 1 1 . . . . . . . . . . 5 1 . 2 8 7 14 3 Misfires 26 | . 1 . . . 3 . . . . . . . . . . . . . . . 4 2 . 4 3 2 6 1 Alerts 23 | . . 1 1 . 1 1 2 . . . . 1 . . . . . . . . 1 . . 2 4 5 3 1 Misdirections 2 | . . . . . . . . . . . . . . . . . . . . . . . . . 2 . . . Weapon Failures 55 | . . 1 . 1 . . . . . . . . . . . . . . . . 1 1 . 1 25 2 22 1 Overload Shots 21 | . . . . . . . . . . . . . . . . . . . . . . . . . 21 . . . Effects 3 | . . . . . . . . . . . . . . . . . . . . . . . . . 3 . . . Energy Bleed 1 | . . . . . . . . . . . . . . . . . . . . . . . . . 1 . . . Heat Surge 1 | . . . . . . . . . . . . . . . . . . . . . . . . . 1 . . . Short Circuit 1 | . . . . . . . . . . . . . . . . . . . . . . . . . 1 . . . Overflow Damage 81114 | . 23 . . . . 479 25 21 . 27 101 . 102 43 179 123 50 . . 60 1415 1570 409 1807 12071 47182 13083 2344 Projectiles 80766 | . . . . . . 470 25 21 . 27 94 . 102 43 179 123 50 . . 5 1380 1570 382 1797 12071 47077 13006 2344 Explosions 341 | . 23 . . . . 9 . . . . . . . . . . . . . 55 35 . 27 10 . 105 77 . Melee 7 | . . . . . . . . . . . 7 . . . . . . . . . . . . . . . . . Knockbacks 431 | . . . 2 . . 24 3 11 . 4 . . . 1 4 1 4 . . 1 22 10 . 1 55 94 184 10 Impact . | . . . . . . . . . . . . . . . . . . . . . . . . . . . . . Kinetic 373 | . . . 2 . . 23 3 10 . 4 . . . 1 3 1 4 . . 1 20 9 . 1 49 77 156 9 Secondary 58 | . . . . . . 1 . 1 . . . . . . 1 . . . . . 2 1 . . 6 17 28 1 Self-Inflicted Damage 1162 | . . 5 22 . . 87 . . . . . . . . . . . . . 95 90 . 39 64 45 322 393 . Shots 38 | . . 1 2 . . 2 . . . . . . . . . . . . . 1 2 . 2 3 3 12 10 . Rammed 16 | . 9 . 1 5 . . . . . . 1 . . . . . . . . . . . . . . . . . Targets Rammed 19 | . 9 . 1 6 . 1 . . . . 1 . . . . . . . . . . . . . . 1 . . Kicked 2 | . . . . . . 1 . . . . . . . . . . . . . . . . . . . 1 . . Crushed 1 | . . . . 1 . . . . . . . . . . . . . . . . . . . . . . . . Highest Temperature 431 | . 173 240 330 369 333 399 376 330 . 368 327 222 294 256 195 405 172 263 139 160 431 423 . 269 301 337 339 203 Average Temperature 125 | . 29 71 85 87 66 140 138 149 . 134 91 60 93 109 69 58 51 122 72 66 77 86 . 58 43 161 139 140 Received Heat Transfer 4543 | . 210 189 828 351 15 438 437 . . . 45 . 219 39 . 377 80 . . . 139 12 78 72 449 155 309 101 Thermoelectric Energy+ 127720 | . . . . . . . . . . . . . . . . . . . . . . . . . . 80856 32270 14594 Effects 51 | . . . 3 1 2 6 2 . . 4 . . . . . 1 . . . . 2 2 . . 1 12 3 12 Shutdowns 5 | . . . . 1 . 1 . . . . . . . . . 1 . . . . . 1 . . . 1 . . Energy Bleed 18 | . . . 3 . . 2 . . . 1 . . . . . . . . . . 1 1 . . 1 3 2 4 Interference 24 | . . . . . 1 3 1 . . 2 . . . . . . . . . . . . . . . 8 1 8 Short Circuit 2 | . . . . . . . . . . 1 . . . . . . . . . . 1 . . . . . . . Damage (minor) 2 | . . . . . 1 . 1 . . . . . . . . . . . . . . . . . . . . . Siege Activations 4 | . . . . . . . . . . . . . . . . . . . . . . . . . 2 . 2 . Total Turns 101 | . . . . . . . . . . . . . . . . . . . . . . . . . 29 . 72 . Longest Duration 67 | . . . . . . . . . . . . . . . . . . . . . . . . . 18 . 67 . Martial Activations . | . . . . . . . . . . . . . . . . . . . . . . . . . . . . . Shielding Activations 56 | . . . . . . . . . . . . . . . . . . . . . . . . . 7 18 24 7 Total Turns 3310 | . . . . . . . . . . . . . . . . . . . . . . . . . 101 1126 2016 67 Longest Duration 1318 | . . . . . . . . . . . . . . . . . . . . . . . . . 41 214 1318 15 Robots Disrupted 1 | . . . . . . . . . . . . . . . . . . . . . 1 . . . . . . . Combat Hostiles 1 | . . . . . . . . . . . . . . . . . . . . . 1 . . . . . . . Robots Corrupted 26 | . . . . . . . . . . . . . . . . . . . . . 3 1 . . 7 8 6 1 Combat Hostiles 23 | . . . . . . . . . . . . . . . . . . . . . 3 . . . 7 7 5 1 Parts Fried 61 | . . 1 . . 1 2 . . . . . . . . . . 1 . . . 1 2 . 1 21 17 12 2 Impact Corruptions 56 | . . . . . . 1 . . . . 1 . . . . . . . . . . 1 . . 1 34 17 1 Robots Melted 2 | . . . . . . . . . . . . . . . . . . . . . . . . 2 . . . . Combat Hostiles 2 | . . . . . . . . . . . . . . . . . . . . . . . . 2 . . . . Parts Melted 41 | . . 1 3 5 1 . . . . . 5 2 3 . . . . . . . . . 1 9 3 8 . . Heat Transferred 28907 | . 500 475 2974 2349 208 50 . . . . 2500 322 2755 . . . . . . 75 2950 . 1500 1869 4999 . 619 4762 Parts Sabotaged . | . . . . . . . . . . . . . . . . . . . . . . . . . . . . . Parts Stolen . | . . . . . . . . . . . . . . . . . . . . . . . . . . . . . Parts Stripped . | . . . . . . . . . . . . . . . . . . . . . . . . . . . . . Power Chain Reactions 5 | . . . . . . . . . . . . . . . . . . . . 1 4 . . . . . . . Alert | -11 -10 -10 -8 -8 -8 -6 -6 -6 -6 -5 -5 -5 -5 -5 -4 -4 -4 -4 -4 -4 -3 -3 -2 -2 -2 -1 -1 -1 ------- Run | Yrd Mat Sub Mat Sto Rec Fac Low Low Dat Pro Fac Upp Upp War Pro Fac Ext Cet Arc Hub Res Tes Res Qua Frg Acc Com Ac0 Maximum Alert Level 5 | . 1 . 2 2 . 3 . . . . 2 . . . . . 1 1 1 4 4 3 2 1 5 5 5 . Low Security (%) 27 | 100 44 . 58 22 100 51 . . . . . . . . . 100 85 38 76 41 . . . 70 . . . . Level 1 14 | . 55 . 40 47 . 15 . . . . 44 . . . . . 14 61 23 3 11 38 . 29 14 . . . Level 2 12 | . . . . 29 . 18 . . . . 55 . . . . . . . . 15 60 35 100 . 12 . . . Level 3 4 | . . . . . . 15 . . . . . . . . . . . . . 19 15 25 . . 17 . . . Level 4 2 | . . . . . . . . . . . . . . . . . . . . 19 12 . . . 20 . . . Level 5 7 | . . . . . . . . . . . . . . . . . . . . . . . . . 20 5 22 . High Security 30 | . . . . . . . . . . . . . . . . . . . . . . . . . 14 94 77 . Max Security . | . . . . . . . . . . . . . . . . . . . . . . . . . . . . . Sterilizations 1 | . . . . . . . . . . . . . . . . . . . . . . . . . . 1 . . Peak Influence 12249 | . 320 . 401 500 131 821 . . . . 545 . . . . 42 373 301 211 1159 1456 842 621 345 3384 10758 12249 . Initial 6884 | . . . . 166 131 350 . . . . 454 . . . . . . 88 96 56 587 819 429 273 177 2030 6884 . Average 3340 | . 192 . 183 328 21 310 . . . . 385 . . . . 9 131 217 169 491 668 545 511 158 1398 8548 10724 . Influence Increases 32878 | . 677 40 1224 825 466 1715 55 55 . 130 930 5 410 187 90 93 1060 343 175 1319 1836 880 393 949 3967 8888 5686 480 Destroy 0b10 Robot/C 18300 | . 300 40 720 440 140 680 40 40 . 100 180 . 360 80 80 20 480 160 80 280 960 420 260 560 2160 5940 3780 . Destroy 0b10 Robot/NC 1310 | . 55 . 100 60 25 90 5 5 . 10 45 5 10 5 . 20 30 10 . 15 25 45 . 50 95 410 195 . Destroy Leader 3020 | . 78 . 192 128 . 156 10 10 . 20 54 . 10 . 10 10 42 . . 52 228 66 50 88 210 1008 598 . Allied During Kill 1113 | . . . . 21 69 36 . . . . . . . 12 . . 395 163 80 326 5 . . . . . 6 . Successful Hack 286 | . 23 . 33 18 13 17 . . . . 18 . . . . 24 20 . . 12 26 30 10 32 10 . . . Select Force Hacks 270 | . 60 . . . 210 . . . . . . . . . . . . . . . . . . . . . . . Disable Machine 1680 | . 45 . 60 30 . 225 . . . . 75 . . . . 15 . . 15 210 45 165 15 135 255 120 150 120 Anti-Garrison Action 450 | . . . . . . . . . . . . . . . . . . . . 150 300 . . . . . . . Destroy Structure 4404 | . 116 . 29 8 9 116 . . . . 108 . . . . 4 48 10 . 214 172 124 43 69 1057 1140 777 360 Advance Influence 800 | . . . . . . 350 . . . . 450 . . . . . . . . . . . . . . . . . Partial Spotted 45 | . . . . . . . . . . . . . . . . . 45 . . . . . . . . . . . Lose Combat Pursuer 1200 | . . . 90 120 . 45 . . . . . . 30 90 . . . . . 60 75 30 15 15 180 270 180 . Influence Decreases 32608 | . 538 179 829 883 803 898 872 55 . 122 648 295 292 284 111 93 901 261 255 361 1499 1573 670 1118 900 1514 4094 12560 Entered New Map 20812 | . . 67 . 229 206 . 304 . . . 4 108 . 118 21 . . 71 145 105 532 637 334 213 140 1354 3874 12350 Time Decay 8451 | . 538 112 569 474 497 648 538 55 . 122 374 187 282 116 90 83 472 180 70 90 697 486 326 565 670 140 70 . Search Patrol Dispatched 200 | . . . . . . 100 . . . . 100 . . . . . . . . . . . . . . . . . Lost Part 530 | . . . 110 30 . 20 30 . . . 20 . 10 . . 10 . 10 . . 10 . 10 40 90 20 50 70 Lost Ally 850 | . . . . . 100 130 . . . . . . . 50 . . 60 . 40 120 110 . . . . . 100 140 Purge Threat 1765 | . . . 150 150 . . . . . . 150 . . . . . 369 . . 46 150 450 . 300 . . . . Squads Dispatched 200 | . 4 . 3 1 . 13 . . . . 5 . 1 . . 1 . . . 6 6 10 1 12 29 68 40 . Investigation 19 | . 3 . 2 1 . 4 . . . . 1 . . . . 1 . . . 2 3 1 1 . . . . . Extermination 22 | . . . . . . 4 . . . . 2 . . . . . . . . . . 4 . 6 6 . . . Reinforcement 27 | . 1 . 1 . . 4 . . . . 2 . . . . . . . . 1 3 3 . 3 1 4 4 . Assault 125 | . . . . . . 1 . . . . . . 1 . . . . . . 2 . 2 . . 22 61 36 . Garrison 7 | . . . . . . . . . . . . . . . . . . . . 1 . . . 3 . 3 . . Intercept . | . . . . . . . . . . . . . . . . . . . . . . . . . . . . . Searches Triggered 2 | . . . . . . 1 . . . . 1 . . . . . . . . . . . . . . . . . Unchained Authorized 1 | . . . . . . . . . . . . . . . . . . . . . . . . . . 1 . . Data Miner Redirects 6 | . . . . . . . . . . . 1 . . . . 1 . . . . . 1 . . 2 1 . . Construction Impeded 4 | . . . . . . 1 . . . . . . . . . . . . . 1 . 1 . . 1 . . . Haulers Reinforced 7 | . . . . . . 1 . . . . 1 . . . . . . . . . 2 1 . . . 2 . . Active Scanning Responses . | . . . . . . . . . . . . . . . . . . . . . . . . . . . . . Cargo Convoy Interrupts . | . . . . . . . . . . . . . . . . . . . . . . . . . . . . . Stealth | -11 -10 -10 -8 -8 -8 -6 -6 -6 -6 -5 -5 -5 -5 -5 -4 -4 -4 -4 -4 -4 -3 -3 -2 -2 -2 -1 -1 -1 --------- Run | Yrd Mat Sub Mat Sto Rec Fac Low Low Dat Pro Fac Upp Upp War Pro Fac Ext Cet Arc Hub Res Tes Res Qua Frg Acc Com Ac0 Distress Signals 44 | . . . 4 1 2 2 . . . . . . . 2 . . 3 2 . . 5 . 5 2 . 5 11 . Communications Jammed . | . . . . . . . . . . . . . . . . . . . . . . . . . . . . . Distress Signals . | . . . . . . . . . . . . . . . . . . . . . . . . . . . . . Times Spotted 1262 | . 28 9 52 31 7 42 4 2 . 11 14 . 20 66 9 2 22 10 1 18 69 25 14 34 133 333 247 59 Peak Tracking Total 20 | . 5 2 7 9 1 6 3 2 . 5 2 . 9 16 5 1 4 5 1 9 7 4 7 5 13 20 16 7 Tactical Retreats 56 | . . . 4 5 . 3 . . . . . . 2 4 . . . . . 2 3 1 1 1 6 15 7 2 Traps | -11 -10 -10 -8 -8 -8 -6 -6 -6 -6 -5 -5 -5 -5 -5 -4 -4 -4 -4 -4 -4 -3 -3 -2 -2 -2 -1 -1 -1 ------- Run | Yrd Mat Sub Mat Sto Rec Fac Low Low Dat Pro Fac Upp Upp War Pro Fac Ext Cet Arc Hub Res Tes Res Qua Frg Acc Com Ac0 Traps Triggered 36 | . 4 . 4 3 . 3 . . . . . . . . . . . . . 1 1 3 . 1 11 3 2 . Indirectly 1 | . . . . . . . . . . . . . . . . . . . . . . . . . 1 . . . Trap Hack Attempts . | . . . . . . . . . . . . . . . . . . . . . . . . . . . . . Triggered . | . . . . . . . . . . . . . . . . . . . . . . . . . . . . . Disarmed . | . . . . . . . . . . . . . . . . . . . . . . . . . . . . . Reprogrammed . | . . . . . . . . . . . . . . . . . . . . . . . . . . . . . Reused . | . . . . . . . . . . . . . . . . . . . . . . . . . . . . . Traps Extracted . | . . . . . . . . . . . . . . . . . . . . . . . . . . . . . Installed 2 | . . 1 . . . . . . . . . . 1 . . . . . . . . . . . . . . . Triggered . | . . . . . . . . . . . . . . . . . . . . . . . . . . . . . Machines | -11 -10 -10 -8 -8 -8 -6 -6 -6 -6 -5 -5 -5 -5 -5 -4 -4 -4 -4 -4 -4 -3 -3 -2 -2 -2 -1 -1 -1 ---------- Run | Yrd Mat Sub Mat Sto Rec Fac Low Low Dat Pro Fac Upp Upp War Pro Fac Ext Cet Arc Hub Res Tes Res Qua Frg Acc Com Ac0 Machines Disabled 141 | . 3 . 4 2 . 15 . . . . 5 . 1 1 . 1 . . 1 15 5 13 2 9 32 13 11 8 Max in Single Turn 8 | . 2 . 1 1 . 7 . . . . 1 . 1 1 . 1 . . . 8 1 2 1 3 3 2 1 1 Garrison Access 11 | . . . 1 1 . . . . . . . . . . . . . . . 1 2 . 1 . 1 4 . . Network Hub 1 | . . . . . . . . . . . . . . . . . . . . 1 . . . . . . . . Energy Cycler 1 | . . . . . . . . . . . . . . . . . . . . . . . . . . 1 . . Machines Repaired . | . . . . . . . . . . . . . . . . . . . . . . . . . . . . . Machines Dismantled . | . . . . . . . . . . . . . . . . . . . . . . . . . . . . . Machines Sabotaged . | . . . . . . . . . . . . . . . . . . . . . . . . . . . . . Overloaded Fab Kills . | . . . . . . . . . . . . . . . . . . . . . . . . . . . . . Hacking | -11 -10 -10 -8 -8 -8 -6 -6 -6 -6 -5 -5 -5 -5 -5 -4 -4 -4 -4 -4 -4 -3 -3 -2 -2 -2 -1 -1 -1 --------- Run | Yrd Mat Sub Mat Sto Rec Fac Low Low Dat Pro Fac Upp Upp War Pro Fac Ext Cet Arc Hub Res Tes Res Qua Frg Acc Com Ac0 Machines Accessed 104 | . 7 . 12 11 14 6 1 1 4 . 5 . . 4 . 2 9 . . 2 4 8 3 5 5 . . 1 Terminals 67 | . 5 . 8 9 6 3 . 1 . . 3 . . . . 2 9 . . 1 3 7 1 5 4 . . . Fabricators 4 | . . . . . . 2 . . . . 1 . . . . . . . . . 1 . . . . . . . Repair Stations 5 | . . . 1 1 . 1 . . . . . . . . . . . . . . . 1 1 . . . . . Recycling Units 11 | . 2 . . . 7 . . . . . 1 . . . . . . . . . . . 1 . . . . . Scanalyzers 2 | . . . 2 . . . . . . . . . . . . . . . . . . . . . . . . . Garrison Access 4 | . . . 1 1 . . . . . . . . . . . . . . . 1 . . . . 1 . . . Total Hacks 322 | . 17 . 44 26 33 13 1 1 31 . 16 . . 17 . 4 23 . . 4 11 27 11 15 11 . . 17 Successful 196 | . 12 . 24 12 21 9 1 1 31 . 7 . . 17 . 2 13 . . 2 4 9 3 7 4 . . 17 Failed 124 | . 4 . 19 14 12 4 . . . . 9 . . . . 2 10 . . 2 7 18 8 8 7 . . . Catastrophic 18 | . . . 4 1 1 1 . . . . 1 . . . . . 1 . . . 2 3 1 . 3 . . . Database Lockouts 2 | . 1 . 1 . . . . . . . . . . . . . . . . . . . . . . . . . Manual 138 | . 15 . 26 16 23 5 . . . . 8 . . 1 . . 17 1 . 1 1 11 . 7 6 . . . Terminals 198 | . 15 . 31 22 23 5 . 1 . . 11 . . . . 4 23 . . 2 7 26 3 15 10 . . . Fabricators 13 | . . . . . . 6 . . . . 3 . . . . . . . . . 4 . . . . . . . Repair Stations 11 | . . . 2 2 . 2 . . . . . . . . . . . . . . . 1 4 . . . . . Recycling Units 16 | . 2 . . . 8 . . . . . 2 . . . . . . . . . . . 4 . . . . . Scanalyzers 10 | . . . 10 . . . . . . . . . . . . . . . . . . . . . . . . . Garrison Access 6 | . . . 1 2 . . . . . . . . . . . . . . . 2 . . . . 1 . . . Terminal Hacks 127 | . 3 . 8 6 9 2 1 1 31 . 4 . . 17 . 2 6 . . 1 1 7 2 6 3 . . 17 Record 29 | . . . . . . . . 1 11 . . . . . . . . . . . . . . . . . . 17 Part Schematic 15 | . . . . . 2 . . . 13 . . . . . . . . . . . . . . . . . . . Robot Schematic 4 | . . . . . . . . . 4 . . . . . . . . . . . . . . . . . . . Robot Analysis 3 | . 2 . 1 . . . . . . . . . . . . . . . . . . . . . . . . . Prototype ID Bank 21 | . . . . . 1 . . . 3 . . . . 16 . . . . . . . . . . 1 . . . Open Door 6 | . . . . 3 . . 1 . . . . . . 1 . 1 . . . . . . . . . . . . Branch Access Points 6 | . . . 1 1 . 1 . . . . 1 . . . . 1 . . . . . . 1 . . . . . Machine Index 1 | . . . . . . . . . . . . . . . . . . . . . . . . 1 . . . . Terminal Index 5 | . 1 . . . 1 . . . . . 1 . . . . . 1 . . . . . . 1 . . . . Alert Level 8 | . . . 1 1 1 . . . . . 1 . . . . . . . . . . 2 . 1 1 . . . Unreport Threat 13 | . . . 1 1 . . . . . . 1 . . . . . 3 . . 1 1 3 . 2 . . . . Locate Traps 2 | . . . . . . 1 . . . . . . . . . . 1 . . . . . . . . . . . Hauler Manifests 1 | . . . 1 . . . . . . . . . . . . . . . . . . . . . . . . . Zone Layout 10 | . . . 3 . 2 . . . . . . . . . . . 1 . . . . 2 1 1 . . . . Proto ID Catalog 1 | . . . . . . . . . . . . . . . . . . . . . . . . . 1 . . . Release Object 2 | . . . . . 2 . . . . . . . . . . . . . . . . . . . . . . . Fabricator Hacks 9 | . . . . . . 6 . . . . 1 . . . . . . . . . 2 . . . . . . . Network Status 2 | . . . . . . 2 . . . . . . . . . . . . . . . . . . . . . . Load Schematic 4 | . . . . . . 2 . . . . 1 . . . . . . . . . 1 . . . . . . . Build 3 | . . . . . . 2 . . . . . . . . . . . . . . 1 . . . . . . . Repair Station Hacks 4 | . . . 1 2 . . . . . . . . . . . . . . . . . . 1 . . . . . Scan Component 3 | . . . 1 1 . . . . . . . . . . . . . . . . . . 1 . . . . . Repair 1 | . . . . 1 . . . . . . . . . . . . . . . . . . . . . . . . Recycling Unit Hacks . | . . . . . . . . . . . . . . . . . . . . . . . . . . . . . Scanalyzer 8 | . . . 8 . . . . . . . . . . . . . . . . . . . . . . . . . Insert Component 1 | . . . 1 . . . . . . . . . . . . . . . . . . . . . . . . . Analyze 1 | . . . 1 . . . . . . . . . . . . . . . . . . . . . . . . . Retrieve Study 6 | . . . 6 . . . . . . . . . . . . . . . . . . . . . . . . . Garrison Access Hacks 3 | . . . 1 1 . . . . . . . . . . . . . . . . . . . . 1 . . . Seal Access 3 | . . . 1 1 . . . . . . . . . . . . . . . . . . . . 1 . . . Unauthorized Hacks 45 | . 9 . 6 3 12 1 . . . . 2 . . . . . 7 . . 1 1 2 . 1 . . . . Terminals 35 | . 7 . 6 3 5 . . . . . 2 . . . . . 7 . . 1 1 2 . 1 . . . . Assimilate 1 | . . . . . . . . . . . . . . . . . . . . . 1 . . . . . . . Botnet 20 | . 2 . 5 3 2 . . . . . 2 . . . . . 2 . . 1 . 2 . 1 . . . . Skim 14 | . 5 . 1 . 3 . . . . . . . . . . . 5 . . . . . . . . . . . Fabricators . | . . . . . . . . . . . . . . . . . . . . . . . . . . . . . Repair Stations 1 | . . . . . . 1 . . . . . . . . . . . . . . . . . . . . . . Patch 1 | . . . . . . 1 . . . . . . . . . . . . . . . . . . . . . . Recycling Units 9 | . 2 . . . 7 . . . . . . . . . . . . . . . . . . . . . . . Tunnel 9 | . 2 . . . 7 . . . . . . . . . . . . . . . . . . . . . . . Scanalyzers . | . . . . . . . . . . . . . . . . . . . . . . . . . . . . . Garrison Access . | . . . . . . . . . . . . . . . . . . . . . . . . . . . . . Data Cores Recovered 4 | . . . . 1 . . . . . . . . . . . . 1 . . . . . . . 1 1 . . Used 3 | . . . . 1 . . . . . . . . . . . . 1 . . . . . . . 1 . . . Hacking Detections 73 | . 5 . 10 5 6 6 . . . . 5 . . . . 1 9 1 . 2 4 8 3 5 3 . . . Full Trace Events 8 | . . . . . . 2 . . . . 1 . . . . 1 . . . 1 2 . 1 . . . . . Feedback Events 1 | . . . . . . . . . . . . . . . . . . . . . 1 . . . . . . . Corruption 1 | . . . . . . . . . . . . . . . . . . . . . 1 . . . . . . . Feedback Blocked . | . . . . . . . . . . . . . . . . . . . . . . . . . . . . . Robot Schematics Acquired 8 | . . . . . . . . . 4 . . . . . . . . . . . . 2 . 1 1 . . . Robots Built . | . . . . . . . . . . . . . . . . . . . . . . . . . . . . . Authchips . | . . . . . . . . . . . . . . . . . . . . . . . . . . . . . Time . | . . . . . . . . . . . . . . . . . . . . . . . . . . . . . Total Robot Build Rating . | . . . . . . . . . . . . . . . . . . . . . . . . . . . . . Part Schematics Acquired 26 | . . . 1 . 2 . . . 13 . . . . . . . . . . . . 2 . 2 6 . . . Parts Built 6 | . . . . . . 4 . . . . . . . . . . . . . . 2 . . . . . . . Authchips . | . . . . . . . . . . . . . . . . . . . . . . . . . . . . . Time 188 | . . . . . . 146 . . . . . . . . . . . . . . 42 . . . . . . . Total Part Build Rating 20 | . . . . . . 12 . . . . . . . . . . . . . . 8 . . . . . . . Part Studies Acquired 3 | . . . 3 . . . . . . . . . . . . . . . . . . . . . . . . . Parts Repaired 1 | . . . . 1 . . . . . . . . . . . . . . . . . . . . . . . . Time 60 | . . . . 60 . . . . . . . . . . . . . . . . . . . . . . . . Parts Recycled . | . . . . . . . . . . . . . . . . . . . . . . . . . . . . . Recycled Matter . | . . . . . . . . . . . . . . . . . . . . . . . . . . . . . Retrieved Matter . | . . . . . . . . . . . . . . . . . . . . . . . . . . . . . Retrieved Components . | . . . . . . . . . . . . . . . . . . . . . . . . . . . . . Parts Scanalyzed 1 | . . . 1 . . . . . . . . . . . . . . . . . . . . . . . . . Part Schematics Acquired 1 | . . . 1 . . . . . . . . . . . . . . . . . . . . . . . . . Parts Damaged . | . . . . . . . . . . . . . . . . . . . . . . . . . . . . . Bothacking | -11 -10 -10 -8 -8 -8 -6 -6 -6 -6 -5 -5 -5 -5 -5 -4 -4 -4 -4 -4 -4 -3 -3 -2 -2 -2 -1 -1 -1 ------------ Run | Yrd Mat Sub Mat Sto Rec Fac Low Low Dat Pro Fac Upp Upp War Pro Fac Ext Cet Arc Hub Res Tes Res Qua Frg Acc Com Ac0 Used RIF Installer . | . . . . . . . . . . . . . . . . . . . . . . . . . . . . . Robots Hacked . | . . . . . . . . . . . . . . . . . . . . . . . . . . . . . Non-combat . | . . . . . . . . . . . . . . . . . . . . . . . . . . . . . Combat . | . . . . . . . . . . . . . . . . . . . . . . . . . . . . . Robot Hacks Applied . | . . . . . . . . . . . . . . . . . . . . . . . . . . . . . Relay Couplers Released 12 | . . . . . . . . . . . . . . . . . . . . 3 3 . 1 2 . 3 . . Machine Destruction 10 | . . . . . . . . . . . . . . . . . . . . 3 3 . 1 . . 3 . . Programmers 2 | . . . . . . . . . . . . . . . . . . . . . . . . 2 . . . . Fabnet Peak Effective % . | . . . . . . . . . . . . . . . . . . . . . . . . . . . . . Robots Rewired 34 | . . . . . 8 . . . . . . . 1 5 . . 19 . . . 1 . . . . . . . Allies Hacked 1 | . . . . . . . . . . . . . . . . . . . . . 1 . . . . . . . Hacks Repelled . | . . . . . . . . . . . . . . . . . . . . . . . . . . . . . Allies | -11 -10 -10 -8 -8 -8 -6 -6 -6 -6 -5 -5 -5 -5 -5 -4 -4 -4 -4 -4 -4 -3 -3 -2 -2 -2 -1 -1 -1 -------- Run | Yrd Mat Sub Mat Sto Rec Fac Low Low Dat Pro Fac Upp Upp War Pro Fac Ext Cet Arc Hub Res Tes Res Qua Frg Acc Com Ac0 Total Allies 58 | . . . . 10 8 . . . . . . . 1 5 . . 27 5 . . 2 . . . . . . . Largest Group 29 | . . . . 10 13 12 . . . . . . 1 5 . . 24 29 13 10 2 . . . . . . . Highest-Rated Group 1591 | . . . . 173 214 193 . . . . . . 30 301 . . 1136 1591 903 698 171 . . . . . . . Highest-Rated Ally 159 | . . . . 29 29 29 . . . . . . 30 68 . . 159 153 138 96 89 . . . . . . . Total Orders 81 | . . . . . 6 . . . . . . . . 1 . . . 3 . . 7 . . . . 2 28 34 STAY 7 | . . . . . 3 . . . . . . . . 1 . . . 2 . . 1 . . . . . . . FOLLOW 4 | . . . . . 3 . . . . . . . . . . . . 1 . . . . . . . . . . EXPLORE 41 | . . . . . . . . . . . . . . . . . . . . . 6 . . . . 1 14 20 RETURN 29 | . . . . . . . . . . . . . . . . . . . . . . . . . . 1 14 14 Ally Attacks 561 | . . . . 6 87 34 . . . . . . . 11 . . 117 48 29 80 2 . . . . 2 63 82 Total Damage 18117 | . . . . 77 1053 392 . . . . . . . 617 . . 3247 1373 1000 2807 81 . . . . 126 3272 4072 Kills 83 | . . . . 1 12 6 . . . . . . . 4 . . 15 9 4 14 . . . . . . 8 10 Allies Corrupted . | . . . . . . . . . . . . . . . . . . . . . . . . . . . . . Allies Melted 1 | . . . . . . . . . . . . . . . . . . . . . . . 1 . . . . . Intel | -11 -10 -10 -8 -8 -8 -6 -6 -6 -6 -5 -5 -5 -5 -5 -4 -4 -4 -4 -4 -4 -3 -3 -2 -2 -2 -1 -1 -1 ------- Run | Yrd Mat Sub Mat Sto Rec Fac Low Low Dat Pro Fac Upp Upp War Pro Fac Ext Cet Arc Hub Res Tes Res Qua Frg Acc Com Ac0 Active Infowar (turns) 19066 | . . . . . . 1659 1426 531 147 510 676 1198 799 1634 282 219 1033 176 142 160 2782 1236 725 1068 1626 1027 10 . Optics 905 | . . . . . . . . . . . . . . . . . . . . . 727 178 . . . . . . Sensors 14545 | . . . . . . 46 1387 394 147 510 36 1192 744 1619 224 41 914 176 142 160 2473 1058 725 1068 535 954 . . Seismic 2734 | . . . . . . 1613 39 137 . . 575 . . 15 58 178 119 . . . . . . . . . . . Cloaking 3176 | . . . . . . . . . . . 523 690 225 . . . . . . . . . . . 1091 637 10 . Jamming 55 | . . . . . . . . . . . . . 55 . . . . . . . . . . . . . . . Robot Analysis Total 3 | . 2 . 1 . . . . . . . . . . . . . . . . . . . . . . . . . Derelict Logs Recovered 4 | . . . . . . . . . . 1 . 1 . . 2 . . . . . . . . . . . . . Drone Launches 42 | . . . . . . . . . . . . . . . . . . . . . 9 . . . . 1 13 19 Drone Recoveries 24 | . . . . . . . . . . . . . . . . . . . . . 3 . . . . 1 8 12 Exploration | -11 -10 -10 -8 -8 -8 -6 -6 -6 -6 -5 -5 -5 -5 -5 -4 -4 -4 -4 -4 -4 -3 -3 -2 -2 -2 -1 -1 -1 ------------- Run | Yrd Mat Sub Mat Sto Rec Fac Low Low Dat Pro Fac Upp Upp War Pro Fac Ext Cet Arc Hub Res Tes Res Qua Frg Acc Com Ac0 Turns Passed 45675 | 60 1811 566 2050 1216 3289 2396 1572 590 149 563 867 1239 927 1656 310 289 1327 377 142 186 2931 1266 725 1698 3020 5127 7187 2139 Spaces Moved 23923 | 43 958 236 925 517 1303 816 741 301 82 237 387 576 510 1037 401 230 962 229 70 171 2370 978 496 1266 1800 2665 1943 1673 Core 17 | 17 . . . . . . . . . . . . . . . . . . . . . . . . . . . . Treads 6856 | 26 958 236 925 517 1112 . 353 . . . 241 576 510 92 . . . . . . 11 . . 34 1165 . 47 53 Legs 9644 | . . . . . 191 710 297 301 82 237 36 . . . . . 788 . . . . . . 321 586 2665 1810 1620 Wheels . | . . . . . . . . . . . . . . . . . . . . . . . . . . . . . Hover 5973 | . . . . . . . 81 . . . . . . 909 401 230 174 229 70 171 1302 978 382 911 49 . 86 . Flight 1433 | . . . . . . 106 10 . . . 110 . . 36 . . . . . . 1057 . 114 . . . . . Fastest Speed 41 | 50 160 160 156 161 161 186 74 181 181 181 136 136 136 50 50 51 50 50 50 50 41 97 88 89 89 130 62 66 Average Speed 124 | 116 160 160 158 161 203 217 179 181 181 181 161 136 138 116 50 90 50 50 50 50 99 97 121 98 102 130 124 77 Slowest Speed 490 | 160 240 240 161 161 490 222 186 181 181 181 216 136 147 147 130 130 51 50 50 50 182 97 170 208 135 130 165 83 Overloaded Moves 89 | . . . . . . . 4 . . . . . . . . . . . . . . . . . . . 85 . Propulsion Burnouts . | . . . . . . . . . . . . . . . . . . . . . . . . . . . . . Robots Hopped 3 | . . . . . . . . . . . . . . . . . . . . . 3 . . . . . . . Potential Cave-ins 57 | . . . . . . 4 . . . . . 14 . . . . . . . . 4 . . . 29 . . 6 Cave-ins Triggered 4 | . . . . . . . . . . . . . . . . . . . . . . . . . 3 . . 1 Teleports 3 | . . . . . . . . . . . . . . . . . . . . . . . . 1 . . 1 1 Exploration Rate (%) 59 | 4 98 24 86 85 97 27 78 48 69 43 12 63 70 86 61 8 87 63 77 18 77 85 17 89 34 73 59 97 Regions Visited 28 Branch Regions 20 Pre-discovered Areas 15 | . 4 . . . 7 . . . 1 . . . . . 2 . 1 . . . . . . . . . . . Known Exits Taken 11 | . . 1 1 1 . 1 . . . 1 1 . . . . 1 . . . 1 . 1 1 1 . . . . Unknown Exits Taken 17 | 1 1 . . . 1 . 1 1 1 . . 1 1 1 1 . 1 1 1 . 1 . . . 1 1 1 . Scrap Searched 16 | . . 2 . . . . 2 2 . 4 . 3 3 . . . . . . . . . . . . . . . Spaces Dug 344 | . 10 1 1 . 1 27 . . . 8 20 52 8 3 15 . 3 . . . 10 8 9 7 25 113 11 12 Terrain Destroyed 2261 | . 144 65 29 2 9 128 15 13 . 42 63 90 58 9 20 2 21 1 . 153 108 61 15 22 203 534 380 74 Melee . | . . . . . . . . . . . . . . . . . . . . . . . . . . . . . Projectile 1139 | . . 4 7 2 9 70 15 13 . 42 63 90 29 9 20 2 21 1 . 8 72 50 15 22 203 158 140 74 AOE 1122 | . 144 61 22 . . 58 . . . . . . 29 . . . . . . 145 36 11 . . . 376 240 . Terrain Rammed . | . . . . . . . . . . . . . . . . . . . . . . . . . . . . . Walls Destroyed . | . . . . . . . . . . . . . . . . . . . . . . . . . . . . . Machines Disabled . | . . . . . . . . . . . . . . . . . . . . . . . . . . . . . Actions | -11 -10 -10 -8 -8 -8 -6 -6 -6 -6 -5 -5 -5 -5 -5 -4 -4 -4 -4 -4 -4 -3 -3 -2 -2 -2 -1 -1 -1 --------- Run | Yrd Mat Sub Mat Sto Rec Fac Low Low Dat Pro Fac Upp Upp War Pro Fac Ext Cet Arc Hub Res Tes Res Qua Frg Acc Com Ac0 Total 37664 | 51 1150 348 1257 786 1893 1339 965 334 82 355 577 1000 688 1470 490 295 1766 485 176 259 2775 1214 574 1611 2749 4095 6435 2445 Wait 9335 | . 98 25 83 164 404 345 188 14 . 84 98 373 107 288 62 23 577 232 107 51 155 93 19 169 330 943 3885 418 Move 23884 | 42 957 235 924 516 1302 815 740 300 81 236 386 575 509 1036 400 229 961 228 69 170 2363 977 495 1265 1796 2664 1942 1671 Hop 3 | . . . . . . . . . . . . . . . . . . . . . 3 . . . . . . . Pick Up 344 | 3 13 4 29 6 18 27 5 1 . 3 10 4 6 19 1 7 10 6 . 6 18 5 6 16 47 21 29 24 Fast Attach 206 | 5 2 1 16 14 3 4 2 2 . 4 4 2 2 16 . 3 9 1 . 2 13 22 . 7 43 9 18 2 Attach 123 | 1 . 4 12 1 4 6 2 . . 1 3 . 1 3 . 5 . 1 . 1 10 1 3 4 23 11 14 12 Detach 33 | . . . 1 . 8 . . . . . 1 1 1 3 . . . . . 1 3 1 . 2 6 3 1 1 Swap 353 | . 7 19 22 6 4 36 6 5 1 5 16 10 14 8 7 4 11 6 . 4 21 12 2 19 49 15 22 22 Drop 442 | . 6 3 35 14 32 17 6 2 . 7 11 6 8 34 4 9 22 6 . 10 26 26 5 20 52 24 31 26 Fire 2666 | . 58 56 134 59 62 88 16 10 . 15 47 29 38 18 16 15 42 5 . 14 157 77 44 109 397 401 491 268 Melee . | . . . . . . . . . . . . . . . . . . . . . . . . . . . . . Ram . | . . . . . . . . . . . . . . . . . . . . . . . . . . . . . Kick 2 | . . . . . . 1 . . . . . . . . . . . . . . . . . . . 1 . . Crush 17 | . 9 . 1 6 . . . . . . 1 . . . . . . . . . . . . . . . . . Escape Stasis 10 | . . . . . . . . . . . . . . . . . . . . . . . . . 6 3 . 1 Rewire 242 | . . . . . 56 . . . . . . . 1 45 . . 134 . . . 4 . . . . . 2 . Trap 2 | . . 1 . . . . . . . . . . 1 . . . . . . . . . . . . . . . Miscellaneous 2 | . . . . . . . . . . . . . . . . . . . . . 2 . . . . . . . Route ------- -11/Scrapyard -10/Materials (discovered 5 exits: *Mat x3 / *Min / [*Sub]) -10/Subcaves (discovered 2 exits: *Mat / Rec) -8/Materials (discovered 3 exits: [*Fac x2] / *Sto) -8/Storage (discovered 2 exits: [*Fac] / *Rec) -8/Recycling -6/Factory (discovered 3 exits: *Fac / *Low x2) -6/Lower Caves -6/Lower Caves -6/Data Miner -5/Proximity Caves -5/Factory (discovered 2 exits: *Upp x2) -5/Upper Caves -5/Upper Caves -5/Warlord -4/Proximity Caves -4/Factory (discovered 5 exits: Upp x2 / *Ext x2 / Arm) -4/Extension (discovered 3 exits: *Res x2 / *Cet) -4/Cetus (discovered 3 exits: *Res x2 / [*Arc]) -4/Archives (discovered 2 exits: *Hub x2) -4/Hub_04(d) -3/Research (discovered 4 exits: *Res x3 / *Tes) -3/Testing -2/Research (discovered 3 exits: [*Acc] / *Qua x2) -2/Quarantine (discovered 3 exits: [*Acc] / [*Sec] / *Frg) -2/Protoforge -1/Access -1/Command (discovered 3 exits: [*Sur x2] / *Ac0) -1/Access_0 0b11 Command History --------- Turn | Location | Event 10 | -11/Scrapyard | Discovered new exit (range 15) 61 | -11/Scrapyard | Entered Materials 303 | -10/Materials | Build established: Mutant 376 | -10/Materials | Discovered new exit (range 10) 826 | -10/Materials | Discovered new exit (range 15) 983 | -10/Materials | Discovered new exit (range 7) 1003 | -10/Materials | Central database locked down 1063 | -10/Materials | Learned location of 2 exits from Mines 1113 | -10/Materials | Loaded intel: 1 repair station location 1155 | -10/Materials | Learned location of 2 exits from Subcaves 1187 | -10/Materials | Identified exit to Materials 1208 | -10/Materials | Learned Storage stockpile data 1220 | -10/Materials | Loaded intel: 10 trap records 1242 | -10/Materials | Learned location of Mines (-10) 1276 | -10/Materials | Identified exit to Mines 1322 | -10/Materials | Learned location of Storage (-8) 1872 | -10/Materials | Entered Subcaves 1873 | -10/Subcaves | Identified exit to Recycling 1873 | -10/Subcaves | Identified exit to Materials 2015 | -10/Subcaves | Disturbed a concealed Subdweller 2147 | -10/Subcaves | Shifting Twisted Machinery released Sub. Monowheel 2175 | -10/Subcaves | Shifting Twisted Machinery released Piercing Trap 2413 | -10/Subcaves | Lost 3 parts (1p1n1u) 2438 | -10/Subcaves | Entered Materials 2438 | -8/Materials | Evolved 4 slots: Propulsion x2, Utility x1, Weapon x1 2624 | -8/Materials | Lost 5 parts (1n2u2w) 2833 | -8/Materials | Discovered new exit (range 7) 2981 | -8/Materials | Build established: Scavenger-Tank 3065 | -8/Materials | Identified exit to Storage 3515 | -8/Materials | Central database locked down 3736 | -8/Materials | Discovered new exit (range 10) 4488 | -8/Materials | Entered Storage 4761 | -8/Storage | Core integrity fell below 50% 4828 | -8/Storage | Destroyed 8 combat bots 5226 | -8/Storage | Repaired Enh. Autogun 5248 | -8/Storage | Discovered new exit (range 15) 5316 | -8/Storage | Build established: Scavenger-Gunner 5630 | -8/Storage | Assisted by bots powering up and referring to "LRC-V3" 5646 | -8/Storage | Used back door to open Recycling access 5704 | -8/Storage | Entered Recycling 5704 | -8/Recycling | Accompanied by 10 allies 5751 | -8/Recycling | Lost 3 allies 5927 | -8/Recycling | Build established: Commander-Tank 6796 | -8/Recycling | Entered Scraplab 6828 | -8/Recycling | Found Prototype Device 6828 | -8/Recycling | Identified Scrap Engine 7224 | -8/Recycling | Build established: Commander-Construct 7996 | -8/Recycling | Discovered new exit (range 7) 8993 | -8/Recycling | Entered Factory 8993 | -6/Factory | Accompanied by 12 allies 8993 | -6/Factory | Evolved 4 slots: Propulsion x1, Utility x3 9343 | -6/Factory | Search patrols dispatched 9385 | -6/Factory | Lost 3 allies 9491 | -6/Factory | Lost 5 allies 9758 | -6/Factory | Build established: Construct 10012 | -6/Factory | Fabricated Flak Cannon (x2) 10105 | -6/Factory | Discovered new exit (range 4) 10543 | -6/Factory | Identified exit to Lower Caves 11013 | -6/Factory | Fabricated Flak Cannon (x2) 11093 | -6/Factory | First assault squad dispatched 11389 | -6/Factory | Entered Lower Caves 11431 | -6/Lower Caves | Spotted B-75 Beast 11527 | -6/Lower Caves | Destroyed B-75 Beast 12160 | -6/Lower Caves | Encountered a Warlord checkpoint 12310 | -6/Lower Caves | Attracted the attention of an 0b10 checkpoint 12839 | -6/Lower Caves | Discovered new exit (range 9) 12961 | -6/Lower Caves | Entered another Lower Caves area 13468 | -6/Lower Caves | Discovered new exit (range 15) 13487 | -6/Lower Caves | Encountered a Warlord checkpoint 13551 | -6/Lower Caves | Entered Data Miner 13551 | -6/Data Miner | Discovered new exit (range 6) 13586 | -6/Data Miner | Met Data Miner 13624 | -6/Data Miner | Learned location of Section 7 (-2) 13624 | -6/Data Miner | Acquired the access code to Warlord's prototype stash 13647 | -6/Data Miner | Received God Mode back door access code from Data Miner 13700 | -6/Data Miner | Entered Proximity Caves 13702 | -5/Proximity Caves | Spotter reported a threat 13703 | -5/Proximity Caves | Spotter reported a threat 13859 | -5/Proximity Caves | Identified exit to Factory 13880 | -5/Proximity Caves | Spotter reported a threat 14228 | -5/Proximity Caves | Spotted B-75 Beast 14263 | -5/Proximity Caves | Entered Factory 14263 | -5/Factory | Evolved 2 slots: Utility x1, Weapon x1 14563 | -5/Factory | Search patrols dispatched 14817 | -5/Factory | Identified exit to Upper Caves 14898 | -5/Factory | Spotted B-75 Beast 14920 | -5/Factory | Incoming investigation squad redirected 15130 | -5/Factory | Entered Upper Caves 16125 | -5/Upper Caves | Learned Factory emergency access door positions 16219 | -5/Upper Caves | Discovered new exit (range 15) 16369 | -5/Upper Caves | Entered another Upper Caves area 16594 | -5/Upper Caves | Attracted the attention of an 0b10 outpost 16759 | -5/Upper Caves | Attracted the attention of an 0b10 checkpoint 16826 | -5/Upper Caves | Destroyed 7 combat bots 16863 | -5/Upper Caves | Found Unknown Protection 16863 | -5/Upper Caves | Identified Imp. Powered Armor 17274 | -5/Upper Caves | Discovered new exit (range 8) 17296 | -5/Upper Caves | Entered Warlord 17348 | -5/Warlord | System corruption cleaned by Quarantine Array 17982 | -5/Warlord | Opened Warlord's prototype stash 17988 | -5/Warlord | Found Prototype Reactor 18013 | -5/Warlord | Found Prototype Hackware 18013 | -5/Warlord | Identified Ghost Barrier 18023 | -5/Warlord | Found Prototype Device 18023 | -5/Warlord | Identified Exp. Focal Shield 18047 | -5/Warlord | Build established: Commander-Construct 18132 | -5/Warlord | Warlord's base attacked by MAIN.C 18260 | -5/Warlord | Found Prototype Energy Gun 18260 | -5/Warlord | Identified Vortex Shotgun 18266 | -5/Warlord | Found Vortex Shotgun 18271 | -5/Warlord | Found Prototype Energy Gun 18271 | -5/Warlord | Identified Vortex Rail 18282 | -5/Warlord | Found Vortex Rail 18402 | -5/Warlord | Spotted B-86 Titan 18405 | -5/Warlord | Allies destroyed B-86 Titan 18413 | -5/Warlord | P-70 Sage assimilated allied Q1-S58(d) 18421 | -5/Warlord | Warlord forces counterattacked 18467 | -5/Warlord | Lost 10 allies 18617 | -5/Warlord | Spotted Executioner 18617 | -5/Warlord | Spotted Executioner 18630 | -5/Warlord | Lost 24 allies 18681 | -5/Warlord | Build established: Construct 18706 | -5/Warlord | Spotted Striker 18736 | -5/Warlord | Spotted Executioner 18760 | -5/Warlord | Spotted Executioner 18807 | -5/Warlord | Warlord base infiltrated, sounded retreat 18814 | -5/Warlord | Lost 11 allies 18818 | -5/Warlord | Found Corrupted Prototype Processor 18827 | -5/Warlord | Spotted Striker 18829 | -5/Warlord | Spotted Executioner 18845 | -5/Warlord | Met Warlord 18862 | -5/Warlord | Spotted Executioner 18888 | -5/Warlord | Lost 4 allies 18903 | -5/Warlord | Discovered new exit (range 13) 18952 | -5/Warlord | Entered Proximity Caves 19084 | -4/Proximity Caves | Learned location of Quarantine (-2) 19238 | -4/Proximity Caves | Discovered new exit (range 12) 19260 | -4/Proximity Caves | Identified Exp. Core Analyzer 19261 | -4/Proximity Caves | Attracted the attention of an 0b10 outpost 19262 | -4/Proximity Caves | Entered Factory 19262 | -4/Factory | Evolved 2 slots: Power x1, Utility x1 19281 | -4/Factory | Identified exit to Upper Caves 19281 | -4/Factory | Identified exit to Extension 19281 | -4/Factory | Identified exit to Armory 19311 | -4/Factory | Incoming investigation squad redirected 19338 | -4/Factory | Spotted B-86 Titan 19385 | -4/Factory | Destroyed B-86 Titan 19551 | -4/Factory | Entered Extension 19749 | -4/Extension | Found Powered Armor 19751 | -4/Extension | Found Powered Armor 19753 | -4/Extension | Found Powered Armor 19763 | -4/Extension | Rescued A7 20004 | -4/Extension | Rescued a captive Derelict 20091 | -4/Extension | Build established: Commander-Construct 20271 | -4/Extension | Spotted B-86 Titan 20282 | -4/Extension | Spotted B-86 Titan 20284 | -4/Extension | Allies destroyed B-86 Titan 20294 | -4/Extension | Destroyed B-86 Titan 20332 | -4/Extension | Rescued a captive Derelict 20369 | -4/Extension | Rescued a captive Derelict 20442 | -4/Extension | Rescued a captive Derelict 20445 | -4/Extension | Rescued a captive Derelict 20465 | -4/Extension | Rescued a captive Derelict 20480 | -4/Extension | Rescued a captive Derelict 20539 | -4/Extension | Learned Research terminal intel 20607 | -4/Extension | Identified exit to Research 20664 | -4/Extension | Learned Factory emergency access door positions 20709 | -4/Extension | Learned Testing emergency access door positions 20744 | -4/Extension | Learned location of 2 exits from Upper Caves 20791 | -4/Extension | Learned location of 2 exits from Upper Caves 20797 | -4/Extension | Discovered new exit (range 6) 20846 | -4/Extension | Learned location of 1 exit from Proximity Caves 20878 | -4/Extension | Entered Cetus 20878 | -4/Cetus | Accompanied by 24 allies (A7) 20883 | -4/Cetus | Acquired a Cetus Manufacturing Module code from A7 20890 | -4/Cetus | Spotted Cetus Guard 20892 | -4/Cetus | Spotted Cetus Guard 20892 | -4/Cetus | Spotted Cetus Guard 20901 | -4/Cetus | Allies destroyed Cetus Guard 20908 | -4/Cetus | Allies destroyed Cetus Guard 20910 | -4/Cetus | Allies destroyed Cetus Guard 20939 | -4/Cetus | Discovered exit to Research (range 15) 21077 | -4/Cetus | Started Cetus Manufacturing Module 21085 | -4/Cetus | Discovered new exit (range 15) 21102 | -4/Cetus | Manufactured an Enhanced Grunt 21104 | -4/Cetus | Spotted Cetus Guard 21109 | -4/Cetus | Spotted Cetus Guard 21109 | -4/Cetus | Spotted Cetus Guard 21109 | -4/Cetus | Spotted Cetus Guard 21111 | -4/Cetus | Allies destroyed Cetus Guard 21114 | -4/Cetus | Destroyed Cetus Guard 21127 | -4/Cetus | Manufactured an Enhanced Grunt 21127 | -4/Cetus | Allies destroyed Cetus Guard 21131 | -4/Cetus | Discovered exit to Research (range 15) 21136 | -4/Cetus | Met Revision 17 21152 | -4/Cetus | Manufactured an Enhanced Grunt 21177 | -4/Cetus | Manufactured an Enhanced Grunt 21202 | -4/Cetus | Manufactured an Enhanced Grunt 21255 | -4/Cetus | Entered Archives 21255 | -4/Archives | Accompanied by 13 allies (A7) 21330 | -4/Archives | Discovered new exit (range 15) 21340 | -4/Archives | Discovered new exit (range 15) 21397 | -4/Archives | Entered Hub_04(d) 21397 | -4/Hub_04(d) | Accompanied by 10 allies 21437 | -4/Hub_04(d) | Garrison activated, responded to threat 21529 | -4/Hub_04(d) | Discovered exit to Research (range 16) 21543 | -4/Hub_04(d) | Network Hub disabled 21567 | -4/Hub_04(d) | Lost 8 allies 21583 | -4/Hub_04(d) | Entered Research 21583 | -3/Research | Accompanied by 1 ally 21583 | -3/Research | Evolved 2 slots: Propulsion x1, Utility x1 21584 | -3/Research | Loaded intel: 24 terminal locations 21783 | -3/Research | Revision forces began assault on 0b10 21837 | -3/Research | Fabricated Gatling Laser? 21854 | -3/Research | Build established: Construct 21893 | -3/Research | Met up with Revision 17++ 21912 | -3/Research | Found Prototype Processor 21913 | -3/Research | Identified Spectral Analyzer 21917 | -3/Research | Found Spectral Analyzer 22055 | -3/Research | Spotted B-86 Titan 22057 | -3/Research | Destroyed B-86 Titan 22283 | -3/Research | Research terminal network offline 22495 | -3/Research | Discovered new exit (range 11) 22507 | -3/Research | Identified exit to Research 22575 | -3/Research | Spotted Executioner 22576 | -3/Research | Spotted Striker 22768 | -3/Research | Found Prototype Processor 22769 | -3/Research | Identified Exp. Melee Analysis Suite 23393 | -3/Research | Spotted Striker 23412 | -3/Research | Spotted Striker 23419 | -3/Research | Spotted Executioner 23421 | -3/Research | Spotted Executioner 23423 | -3/Research | Rewired Striker 23424 | -3/Research | Destroyed Striker 23439 | -3/Research | Destroyed Executioner 23444 | -3/Research | Spotted Executioner 23452 | -3/Research | Destroyed Executioner 23458 | -3/Research | Found Prototype Processor 23580 | -3/Research | Discovered exit to Research (range 14) 23621 | -3/Research | Spotted Striker 23627 | -3/Research | Spotted Striker 23632 | -3/Research | Destroyed Striker 23638 | -3/Research | Destroyed Striker 23707 | -3/Research | Spotted Striker 23712 | -3/Research | Spotted Striker 23719 | -3/Research | Destroyed Striker 23721 | -3/Research | Destroyed Striker 23742 | -3/Research | Spotted Striker 23743 | -3/Research | Destroyed Striker 23764 | -3/Research | Destroyed 7 combat bots 24206 | -3/Research | Spotted Executioner 24209 | -3/Research | Spotted Striker 24216 | -3/Research | Destroyed Executioner 24221 | -3/Research | Found Exp. Core Analyzer 24226 | -3/Research | Destroyed Striker 24246 | -3/Research | Discovered exit to Research (range 23) 24326 | -3/Research | Spotted Striker 24333 | -3/Research | Spotted Striker 24415 | -3/Research | Lost 3 allies 24420 | -3/Research | Destroyed 7 combat bots 24444 | -3/Research | Spotted Striker 24450 | -3/Research | Spotted Striker 24452 | -3/Research | Spotted Striker 24452 | -3/Research | Destroyed Striker 24477 | -3/Research | Discovered new exit (range 8) 24489 | -3/Research | Destroyed Striker 24503 | -3/Research | Destroyed Striker 24514 | -3/Research | Entered Testing 24543 | -3/Testing | Found Prototype Device 24543 | -3/Testing | Identified Adv. Kinecellerator 24567 | -3/Testing | Build established: Scavenger-Construct 24583 | -3/Testing | Found Prototype Launcher 24583 | -3/Testing | Identified Com. Tesla Bomb Launcher 24611 | -3/Testing | Identified Exp. Targeting Computer 24715 | -3/Testing | Found Prototype Device 24715 | -3/Testing | Identified Exp. Thermal Shield 24734 | -3/Testing | Spotted Striker 24764 | -3/Testing | First assault squad dispatched 24782 | -3/Testing | Incoming assault squad redirected 24898 | -3/Testing | System corruption reached 10% 25071 | -3/Testing | Found Prototype Hackware 25071 | -3/Testing | Identified System Mapper 25172 | -3/Testing | Found Prototype Device 25172 | -3/Testing | Identified Exp. Hardlight Generator 25385 | -3/Testing | Build established: Hacker-Construct 25571 | -3/Testing | Discovered exit to Research (range 15) 25647 | -3/Testing | Destroyed PH-E7QCTIXXB6 25674 | -3/Testing | Core integrity fell below 50% 25707 | -3/Testing | Spotted Superbehemoth 25717 | -3/Testing | Found Prototype Energy Gun 25717 | -3/Testing | Identified Tachyon Dispersion Ray 25780 | -3/Testing | Entered Research 25780 | -2/Research | Warlord forces began assault on 0b10 25780 | -2/Research | Evolved 2 slots: Utility x1, Weapon x1 25798 | -2/Research | Identified exit to Quarantine 25890 | -2/Research | Research machine network offline 26254 | -2/Research | Met up with Warlord 26342 | -2/Research | Borebot progress halted 26475 | -2/Research | Spotted B-90 Cyclops 26496 | -2/Research | Destroyed B-90 Cyclops 26500 | -2/Research | Discovered new exit (range 16) 26505 | -2/Research | Entered Quarantine 26680 | -2/Quarantine | Found Alien Artifact 26688 | -2/Quarantine | Found Alien Artifact 26847 | -2/Quarantine | Found Unknown Launcher 26847 | -2/Quarantine | Identified Fusion Bomb Launcher 26915 | -2/Quarantine | Garrison activated, responded to threat 27407 | -2/Quarantine | Identified Hpw. Transdimensional Reconstructor 27407 | -2/Quarantine | Warped through subspace 27446 | -2/Quarantine | Found Hpw. Transdimensional Reconstructor 27608 | -2/Quarantine | Found Alien Artifact 27723 | -2/Quarantine | Discovered new exit (range 10) 27851 | -2/Quarantine | System corruption reached 10% 27977 | -2/Quarantine | Spotted Fortress 28059 | -2/Quarantine | Destroyed Fortress 28070 | -2/Quarantine | Found Prototype Device 28070 | -2/Quarantine | Identified Exp. Force Field 28149 | -2/Quarantine | Discovered new exit (range 6) 28149 | -2/Quarantine | Discovered new exit (range 7) 28153 | -2/Quarantine | Identified exit to Protoforge 28203 | -2/Quarantine | Entered Protoforge 28224 | -2/Protoforge | Superfortress began startup sequence 28272 | -2/Protoforge | Spotted Hotshot 28272 | -2/Protoforge | Spotted Hotshot 28272 | -2/Protoforge | Spotted Hotshot 28273 | -2/Protoforge | Destroyed Hotshot 28276 | -2/Protoforge | Destroyed Hotshot 28278 | -2/Protoforge | Spotted Hotshot 28288 | -2/Protoforge | Destroyed Hotshot 28306 | -2/Protoforge | Destroyed Hotshot 28334 | -2/Protoforge | Discovered new exit (range 13) 28570 | -2/Protoforge | Additional patrols dispatched to research labs 28617 | -2/Protoforge | Crushed by falling debris 28619 | -2/Protoforge | Crushed by falling debris 28634 | -2/Protoforge | Found Prototype Device 28639 | -2/Protoforge | Spotted Immortal 28639 | -2/Protoforge | Spotted Immortal 28639 | -2/Protoforge | Spotted Immortal 28646 | -2/Protoforge | Destroyed Immortal 28655 | -2/Protoforge | Destroyed Immortal 28660 | -2/Protoforge | Destroyed Immortal 28703 | -2/Protoforge | First assault squad dispatched 28790 | -2/Protoforge | Forge Plexus network access discovered 28803 | -2/Protoforge | Spotted Immortal 28804 | -2/Protoforge | Spotted Immortal 28832 | -2/Protoforge | Destroyed Immortal 28843 | -2/Protoforge | Destroyed Immortal 28864 | -2/Protoforge | Identified Crosscalibrator 28888 | -2/Protoforge | Spotted Decapitator 28888 | -2/Protoforge | Spotted Decapitator 28888 | -2/Protoforge | Spotted Decapitator 28888 | -2/Protoforge | Spotted Decapitator 28979 | -2/Protoforge | Destroyed Decapitator 28981 | -2/Protoforge | Destroyed Decapitator 28981 | -2/Protoforge | Destroyed Decapitator 29026 | -2/Protoforge | Found Cep. Matter Streamer 29028 | -2/Protoforge | Found Prototype Ballistic Gun 29028 | -2/Protoforge | Identified Multirail 29032 | -2/Protoforge | Found Prototype Processor 29032 | -2/Protoforge | Identified Exp. Target Analyzer 29049 | -2/Protoforge | Found Cep. Energy Mantle 29060 | -2/Protoforge | Found Faulty Cep. Phase Shift Module 29066 | -2/Protoforge | Found Faulty Cep. Energy Mantle 29082 | -2/Protoforge | Found Cep. Phase Shift Module 29229 | -2/Protoforge | Incoming assault squad redirected 29309 | -2/Protoforge | Spotted Hotshot 29309 | -2/Protoforge | Spotted Hotshot 29309 | -2/Protoforge | Spotted Hotshot 29309 | -2/Protoforge | Spotted Hotshot 29328 | -2/Protoforge | Destroyed Hotshot 29334 | -2/Protoforge | Destroyed Hotshot 29340 | -2/Protoforge | Destroyed Hotshot 29355 | -2/Protoforge | Destroyed Hotshot 29389 | -2/Protoforge | Spotted Immortal 29401 | -2/Protoforge | Spotted Immortal 29408 | -2/Protoforge | Destroyed Immortal 29412 | -2/Protoforge | Destroyed Immortal 29423 | -2/Protoforge | Spotted V291-e 29438 | -2/Protoforge | Destroyed V291-e 29444 | -2/Protoforge | Found Mni. Quantum Capacitor 29448 | -2/Protoforge | Found Mni. Quantum Capacitor 29453 | -2/Protoforge | Spotted V497-d 29474 | -2/Protoforge | Incoming assault squad redirected 29558 | -2/Protoforge | System corruption reached 30% 29579 | -2/Protoforge | Found Cep. Antigrav Storage Unit 29582 | -2/Protoforge | Found Cep. Matter Streamer 29585 | -2/Protoforge | Found Cep. NT7 Matterbank 29639 | -2/Protoforge | Found Cep. Chromion Battery 29653 | -2/Protoforge | Found Cep. Chromion Battery 29713 | -2/Protoforge | Spotted AP7-3 29721 | -2/Protoforge | Destroyed AP7-3 29734 | -2/Protoforge | Destroyed AP7-3 29759 | -2/Protoforge | Found Prototype Processor 29760 | -2/Protoforge | Identified Exp. Targeting Computer 29764 | -2/Protoforge | Found Prototype Device 29765 | -2/Protoforge | Identified Exp. ECM Suite 29771 | -2/Protoforge | Found Exp. Targeting Computer 29773 | -2/Protoforge | Found Prototype Energy Gun 29775 | -2/Protoforge | Identified Enh. Gamma Rifle 29780 | -2/Protoforge | Found Cep. Thermoelectric Network 29783 | -2/Protoforge | Found Cep. Thermoelectric Network 29791 | -2/Protoforge | Found Cep. Cloak Mesh 29795 | -2/Protoforge | Found Faulty Cep. Cloak Mesh 29800 | -2/Protoforge | Found Cep. Impact Drone Bay 29801 | -2/Protoforge | Found Faulty Cep. Impact Drone Bay 29818 | -2/Protoforge | Found Faulty Cep. Thermoelectric Network 29913 | -2/Protoforge | Spotted Decapitator 29913 | -2/Protoforge | Spotted Decapitator 29913 | -2/Protoforge | Spotted Decapitator 29928 | -2/Protoforge | Destroyed Decapitator 29929 | -2/Protoforge | Destroyed Decapitator 29932 | -2/Protoforge | Destroyed Decapitator 29969 | -2/Protoforge | Found Cep. Network Penetrator 30066 | -2/Protoforge | Destroyed 7 combat bots 30129 | -2/Protoforge | Found Prototype Ballistic Gun 30134 | -2/Protoforge | Found Faulty Cep. Helical Railcannon 30147 | -2/Protoforge | Spotted V057-q 30150 | -2/Protoforge | Spotted V865-n 30163 | -2/Protoforge | Spotted V208-r 30168 | -2/Protoforge | Spotted V510-o 30169 | -2/Protoforge | Destroyed V208-r 30182 | -2/Protoforge | Destroyed V510-o 30183 | -2/Protoforge | Destroyed V865-n 30194 | -2/Protoforge | Destroyed V057-q 30205 | -2/Protoforge | Found Prototype Device 30205 | -2/Protoforge | Identified Exp. Thermal Defense Suite 30235 | -2/Protoforge | Found Cep. Plasma Driver 30237 | -2/Protoforge | Build established: Scavenger-Construct 30239 | -2/Protoforge | Found Faulty Cep. Plasma Driver 30242 | -2/Protoforge | Found Prototype Ballistic Gun 30259 | -2/Protoforge | Found Exp. Core Analyzer 30371 | -2/Protoforge | Destroyed 11 combat bots 30435 | -2/Protoforge | Spotted Decapitator 30436 | -2/Protoforge | Spotted Decapitator 30436 | -2/Protoforge | Spotted Decapitator 30436 | -2/Protoforge | Spotted V890-p 30447 | -2/Protoforge | Spotted V014-c 30453 | -2/Protoforge | Destroyed V890-p 30471 | -2/Protoforge | Destroyed Decapitator 30471 | -2/Protoforge | Destroyed Decapitator 30473 | -2/Protoforge | Destroyed Decapitator 30608 | -2/Protoforge | Identified Subatomic Replicator 30608 | -2/Protoforge | Used Subatomic Replicator to replicate Vortex Rail 30628 | -2/Protoforge | Found Cep. Zero-point Core 30641 | -2/Protoforge | Found Cep. Zero-point Core 30753 | -2/Protoforge | Destroyed 8 combat bots 30783 | -2/Protoforge | High security lockdown imminent 30783 | -2/Protoforge | Destroyed Superfortress 30785 | -2/Protoforge | Spotted Executioner 30787 | -2/Protoforge | Destroyed Executioner 30789 | -2/Protoforge | Destroyed Striker 30823 | -2/Protoforge | Destroyed 11 combat bots 30829 | -2/Protoforge | Found Exp. Force Field 30858 | -2/Protoforge | Found Exp. Core Analyzer 30863 | -2/Protoforge | High security lockdown engaged 30995 | -2/Protoforge | Found Cep. Tiamat Rocket Array 31148 | -2/Protoforge | Crushed by falling debris 31202 | -2/Protoforge | Spotted Hotshot 31202 | -2/Protoforge | Spotted Hotshot 31202 | -2/Protoforge | Spotted Decapitator 31202 | -2/Protoforge | Spotted Hotshot 31202 | -2/Protoforge | Spotted Hotshot 31202 | -2/Protoforge | Spotted Decapitator 31203 | -2/Protoforge | Spotted Decapitator 31204 | -2/Protoforge | Spotted Decapitator 31207 | -2/Protoforge | Destroyed Decapitator 31208 | -2/Protoforge | Destroyed Decapitator 31223 | -2/Protoforge | Entered Access 31223 | -1/Access | Evolved 2 slots: Power x1, Utility x1 31313 | -1/Access | Destroyed Executioner 31319 | -1/Access | Destroyed Executioner 31360 | -1/Access | Found Exp. Core Analyzer 31364 | -1/Access | Found Exp. Targeting Computer 31473 | -1/Access | First assault squad dispatched 31492 | -1/Access | Incoming assault squad redirected 31494 | -1/Access | Unchained authorized (CL-0N3) 31506 | -1/Access | High security lockdown imminent 31517 | -1/Access | Build established: Hacker-Construct 31560 | -1/Access | Spotted Striker 31563 | -1/Access | Spotted Striker 31565 | -1/Access | Destroyed Striker 31571 | -1/Access | Destroyed Striker 31586 | -1/Access | High security lockdown engaged 31845 | -1/Access | Garrison activated, responded to threat 31846 | -1/Access | Spotted Investigator 31848 | -1/Access | Scanned by Researcher 31854 | -1/Access | Destroyed Investigator 31872 | -1/Access | Spotted Executioner 31877 | -1/Access | Destroyed Executioner 31894 | -1/Access | Spotted Striker 31911 | -1/Access | Destroyed Striker 31983 | -1/Access | Destroyed 68 combat bots 32048 | -1/Access | Build established: Scavenger-Construct 32094 | -1/Access | Spotted Executioner 32105 | -1/Access | Spotted Executioner 32107 | -1/Access | Destroyed Executioner 32109 | -1/Access | Spotted Striker 32110 | -1/Access | Spotted Striker 32110 | -1/Access | Spotted Executioner 32111 | -1/Access | Destroyed Striker 32114 | -1/Access | Destroyed Striker 32116 | -1/Access | Destroyed Executioner 32122 | -1/Access | Spotted Striker 32138 | -1/Access | Destroyed Striker 32169 | -1/Access | Destroyed Executioner 32190 | -1/Access | Destroyed 22 combat bots 32254 | -1/Access | Destroyed 14 combat bots 32311 | -1/Access | Destroyed Striker 32313 | -1/Access | Destroyed Executioner 32329 | -1/Access | Spotted Striker 32333 | -1/Access | Destroyed Striker 32354 | -1/Access | Destroyed 13 combat bots 32376 | -1/Access | Found Exp. Core Analyzer 32383 | -1/Access | Spotted Striker 32384 | -1/Access | Spotted Striker 32391 | -1/Access | Destroyed Striker 32391 | -1/Access | Destroyed Striker 32453 | -1/Access | Destroyed 10 combat bots 32476 | -1/Access | Spotted Executioner 32476 | -1/Access | Spotted Striker 32477 | -1/Access | Destroyed Striker 32479 | -1/Access | Destroyed Executioner 32481 | -1/Access | Spotted Executioner 32482 | -1/Access | Destroyed Executioner 32482 | -1/Access | Spotted Striker 32482 | -1/Access | Spotted Striker 32482 | -1/Access | Spotted Striker 32487 | -1/Access | Destroyed Striker 32490 | -1/Access | Destroyed Striker 32495 | -1/Access | Destroyed Executioner 32496 | -1/Access | Destroyed Striker 32497 | -1/Access | Spotted Striker 32501 | -1/Access | Destroyed Executioner 32504 | -1/Access | Destroyed Striker 32507 | -1/Access | Destroyed Executioner 32528 | -1/Access | Destroyed 18 combat bots 32548 | -1/Access | Spotted Striker 32549 | -1/Access | Spotted Striker 32550 | -1/Access | Destroyed Striker 32557 | -1/Access | Destroyed Striker 32606 | -1/Access | Destroyed 9 combat bots 32673 | -1/Access | Spotted Executioner 32675 | -1/Access | Destroyed Executioner 32705 | -1/Access | Destroyed 13 combat bots 32767 | -1/Access | Spotted Striker 32770 | -1/Access | Destroyed Striker 32783 | -1/Access | Spotted Executioner 32785 | -1/Access | Destroyed Executioner 32802 | -1/Access | Spotted Executioner 32806 | -1/Access | Destroyed Executioner 32827 | -1/Access | Destroyed 13 combat bots 32848 | -1/Access | Destroyed Striker 32889 | -1/Access | Found Exp. Core Analyzer 32892 | -1/Access | Destroyed 14 combat bots 33040 | -1/Access | Spotted Striker 33040 | -1/Access | Spotted Executioner 33045 | -1/Access | System corruption reached 10% 33046 | -1/Access | Destroyed Striker 33049 | -1/Access | Destroyed Executioner 33054 | -1/Access | Spotted Striker 33055 | -1/Access | Spotted Striker 33057 | -1/Access | Destroyed Striker 33064 | -1/Access | Destroyed Striker 33087 | -1/Access | Destroyed 19 combat bots 33091 | -1/Access | Spotted Striker 33092 | -1/Access | Destroyed Executioner 33096 | -1/Access | Destroyed Striker 33122 | -1/Access | Destroyed Striker 33127 | -1/Access | Spotted Executioner 33133 | -1/Access | Destroyed Executioner 33134 | -1/Access | Spotted Executioner 33138 | -1/Access | Sterilization system engaged 33139 | -1/Access | Destroyed Executioner 33146 | -1/Access | Spotted Striker 33149 | -1/Access | Destroyed Striker 33151 | -1/Access | Spotted Executioner 33152 | -1/Access | Destroyed Executioner 33154 | -1/Access | Destroyed Striker 33157 | -1/Access | Destroyed Executioner 33194 | -1/Access | Destroyed 36 combat bots 33265 | -1/Access | Found Adv. Kinecellerator 33438 | -1/Access | Ambient heat levels rising (+10) 33588 | -1/Access | Ambient heat levels rising (+10) 33700 | -1/Access | Found Exp. Core Analyzer 33738 | -1/Access | Ambient heat levels rising (+10) 33888 | -1/Access | Ambient heat levels rising (+10) 33933 | -1/Access | Spotted B-99 Colossus 33933 | -1/Access | Spotted B-99 Colossus 33937 | -1/Access | Destroyed B-99 Colossus 33940 | -1/Access | Destroyed B-99 Colossus 33965 | -1/Access | Found Multirail 33989 | -1/Access | Found Multirail 34038 | -1/Access | Ambient heat levels rising (+10) 34180 | -1/Access | Spotted B-99 Colossus 34188 | -1/Access | Ambient heat levels rising (+10) 34205 | -1/Access | Destroyed B-99 Colossus 34260 | -1/Access | Spotted B-99 Colossus 34338 | -1/Access | Ambient heat levels rising (+10) 34488 | -1/Access | Ambient heat levels rising (+10) 34638 | -1/Access | Ambient heat levels rising (+10) 34788 | -1/Access | Ambient heat levels rising (+10) 34938 | -1/Access | Ambient heat levels rising (+10) 35088 | -1/Access | Ambient heat levels rising (+10) 35238 | -1/Access | Ambient heat levels rising (+10) 35388 | -1/Access | Ambient heat levels rising (+10) 35470 | -1/Access | Energy Cycler disabled 35538 | -1/Access | Ambient heat levels rising (+10) 35688 | -1/Access | Ambient heat levels rising (+10) 35838 | -1/Access | Ambient heat levels rising (+10) 35988 | -1/Access | Ambient heat levels rising (+10) 36138 | -1/Access | Ambient heat levels rising (+10) 36288 | -1/Access | Ambient heat levels rising (+10) 36338 | -1/Access | Discovered new exit (range 9) 36350 | -1/Access | Entered Command 36507 | -1/Command | High security lockdown imminent 36534 | -1/Command | Spotted Executioner 36534 | -1/Command | Spotted Executioner 36546 | -1/Command | Destroyed Executioner 36554 | -1/Command | Destroyed Executioner 36581 | -1/Command | Found Adv. Kinecellerator 36587 | -1/Command | High security lockdown engaged 36590 | -1/Command | Destroyed 7 combat bots 36734 | -1/Command | Destroyed Striker 36781 | -1/Command | Destroyed 13 combat bots 36823 | -1/Command | Destroyed Executioner 36825 | -1/Command | Spotted Executioner 36826 | -1/Command | Destroyed Executioner 36925 | -1/Command | Destroyed 11 combat bots 36970 | -1/Command | Spotted Executioner 36971 | -1/Command | Destroyed Executioner 36976 | -1/Command | Spotted Striker 36984 | -1/Command | Spotted Executioner 36984 | -1/Command | Spotted Striker 36984 | -1/Command | Spotted Executioner 36993 | -1/Command | Destroyed Executioner 36993 | -1/Command | Destroyed Striker 36996 | -1/Command | Destroyed Executioner 36997 | -1/Command | Spotted Executioner 37003 | -1/Command | Spotted Investigator 37006 | -1/Command | Destroyed Investigator 37018 | -1/Command | Destroyed Executioner 37024 | -1/Command | Destroyed Striker 37027 | -1/Command | Destroyed Executioner 37053 | -1/Command | Destroyed 31 combat bots 37189 | -1/Command | Spotted Striker 37194 | -1/Command | Destroyed Striker 37227 | -1/Command | Destroyed Executioner 37261 | -1/Command | Spotted Striker 37266 | -1/Command | Destroyed Striker 37266 | -1/Command | Spotted Striker 37277 | -1/Command | Destroyed Striker 37298 | -1/Command | Destroyed 28 combat bots 37352 | -1/Command | Spotted Executioner 37353 | -1/Command | Spotted Executioner 37353 | -1/Command | Destroyed Executioner 37357 | -1/Command | Destroyed Executioner 37478 | -1/Command | Spotted Executioner 37478 | -1/Command | Spotted Striker 37480 | -1/Command | Destroyed Striker 37486 | -1/Command | Spotted Executioner 37486 | -1/Command | Spotted Striker 37486 | -1/Command | Spotted Executioner 37488 | -1/Command | Destroyed Executioner 37496 | -1/Command | Destroyed Executioner 37498 | -1/Command | Destroyed Executioner 37502 | -1/Command | Destroyed Striker 37508 | -1/Command | Spotted Executioner 37510 | -1/Command | Spotted Executioner 37510 | -1/Command | Spotted Executioner 37513 | -1/Command | Destroyed Executioner 37517 | -1/Command | Destroyed Executioner 37522 | -1/Command | Destroyed Executioner 37557 | -1/Command | Destroyed 38 combat bots 37563 | -1/Command | Found Exp. Targeting Computer 37567 | -1/Command | Found Exp. Core Analyzer 37668 | -1/Command | Spotted Striker 37687 | -1/Command | Spotted Striker 37694 | -1/Command | Destroyed Striker 37710 | -1/Command | Destroyed Striker 38618 | -1/Command | Destroyed 13 combat bots 38890 | -1/Command | Spotted Striker 38901 | -1/Command | Destroyed Striker 38912 | -1/Command | Spotted Executioner 38914 | -1/Command | Destroyed Executioner 38983 | -1/Command | Spotted Striker 38985 | -1/Command | Spotted Striker 38985 | -1/Command | Destroyed Striker 38995 | -1/Command | Destroyed Striker 40837 | -1/Command | Found Prototype Launcher 40837 | -1/Command | Identified Enh. Gamma Bomb Array 41249 | -1/Command | Spotted Executioner 41252 | -1/Command | Destroyed Executioner 41258 | -1/Command | Spotted Executioner 41260 | -1/Command | Destroyed Executioner 41278 | -1/Command | Spotted B-99 Colossus 41298 | -1/Command | Destroyed B-99 Colossus 41319 | -1/Command | Destroyed 8 combat bots 41337 | -1/Command | Found Multirail 41347 | -1/Command | Found Multirail 41839 | -1/Command | Spotted M Guard 41864 | -1/Command | Destroyed M Guard 41874 | -1/Command | System corruption reached 30% 41886 | -1/Command | Spotted M Guard 41888 | -1/Command | Destroyed M Guard 41892 | -1/Command | Destroyed Combat Programmer 41912 | -1/Command | Destroyed Combat Programmer 41912 | -1/Command | All MAIN.C guards destroyed 41936 | -1/Command | Found Prototype Device 41937 | -1/Command | Identified Thermal Barrier 41954 | -1/Command | Found Prototype Device 41954 | -1/Command | Identified AEGIS Remote Shield 42030 | -1/Command | Met MAIN.C 42044 | -1/Command | 0b10 Conduit disabled 42056 | -1/Command | Destroyed MAIN.C Shell 42057 | -1/Command | MAIN.C activated Command garrisons 42074 | -1/Command | Core integrity fell below 50% 42138 | -1/Command | Destroyed MAIN.C 42164 | -1/Command | Discovered new exit (range 37) 42164 | -1/Command | Discovered new exit (range 79) 42164 | -1/Command | Extracted map data and part IDs from MAIN.C's data core 42191 | -1/Command | Spotted Striker 42198 | -1/Command | Allies destroyed Striker 42240 | -1/Command | P-80 Master assimilated allied K-01 Serf 42442 | -1/Command | Found Exp. System Purifier 43089 | -1/Command | Found Exp. Weapon Cycler 43399 | -1/Command | Found Multirail 43455 | -1/Command | Found Exp. Targeting Computer 43524 | -1/Command | Warped through subspace to slip node 43524 | -1/Command | Discovered new exit (range 4) 43537 | -1/Command | Entered Access_0 43539 | -1/Access_0 | Met Architect 43543 | -1/Access_0 | Architect warped through subspace 43546 | -1/Access_0 | Destroyed A8 43581 | -1/Access_0 | Architect warped through subspace 43620 | -1/Access_0 | Architect warped through subspace 43628 | -1/Access_0 | Subspace Access Node disabled 43650 | -1/Access_0 | Architect warped through subspace 43687 | -1/Access_0 | Architect warped through subspace 43703 | -1/Access_0 | Found Exp. Targeting Computer 43713 | -1/Access_0 | Architect warped through subspace 43723 | -1/Access_0 | Found Exp. Phase Shifter 43733 | -1/Access_0 | Architect warped through subspace 43754 | -1/Access_0 | A6 warped into view 43763 | -1/Access_0 | Architect warped through subspace 43790 | -1/Access_0 | Destroyed A6 43797 | -1/Access_0 | Architect warped through subspace 43833 | -1/Access_0 | Architect warped through subspace 43845 | -1/Access_0 | Subspace Access Node disabled 43878 | -1/Access_0 | Architect warped through subspace 43913 | -1/Access_0 | Architect warped through subspace 43916 | -1/Access_0 | Destroyed A2 43936 | -1/Access_0 | Extracted Singularity Gate Test 138-C access codes from A2's data core 43966 | -1/Access_0 | Architect warped through subspace 44014 | -1/Access_0 | A5 warped into view 44021 | -1/Access_0 | Destroyed A5 44023 | -1/Access_0 | Architect warped through subspace 44078 | -1/Access_0 | Architect warped through subspace 44083 | -1/Access_0 | Singularity Gate disabled 44120 | -1/Access_0 | Architect warped through subspace 44154 | -1/Access_0 | Architect warped through subspace 44177 | -1/Access_0 | Architect warped through subspace 44197 | -1/Access_0 | Architect warped through subspace 44221 | -1/Access_0 | Architect warped through subspace 44228 | -1/Access_0 | A4 warped into view 44246 | -1/Access_0 | Subspace Access Node disabled 44249 | -1/Access_0 | Architect warped through subspace 44274 | -1/Access_0 | Destroyed A4 44295 | -1/Access_0 | Architect warped through subspace 44317 | -1/Access_0 | Subspace Access Node disabled 44347 | -1/Access_0 | Destroyed Architect 44353 | -1/Access_0 | Extracted unknown sensor trigger ID from Architect's data core 44356 | -1/Access_0 | Found Hpw. Transdimensional Reconstructor 44393 | -1/Access_0 | Found Exp. Targeting Computer 44397 | -1/Access_0 | Found Exp. Phase Shifter 44808 | -1/Access_0 | Crushed by falling debris 44941 | -1/Access_0 | A3 warped into view 44956 | -1/Access_0 | Destroyed A3 44966 | -1/Access_0 | Found Prototype Ballistic Gun 44967 | -1/Access_0 | Identified A3's Sniper Rifle 44973 | -1/Access_0 | Found Prototype Processor 44975 | -1/Access_0 | Identified Spectral Analyzer 45071 | -1/Access_0 | Found Exp. Targeting Computer 45075 | -1/Access_0 | Found Prototype Device 45076 | -1/Access_0 | Identified Desublimator 45167 | -1/Access_0 | Found Integrated Mediator 45168 | -1/Access_0 | Installed Integrated Mediator, increased core attachment efficiency 45669 | -1/Access_0 | Warped through subspace to slip node 45669 | -1/Access_0 | Discovered new exit (range 8) 45676 | *** | Establishing 0b11! Last Messages --------------- Renamed Hpw. Accelerated Linear Construct/C. 45593_ Arm. Scrap Engine consumes Hvy. Dispersion Rifle. 45594_ Dropped Hyp. Linear Accelerator. 45595_ Arm. Scrap Engine consumes Hyp. Linear Accelerator. 45595_ System corrupted: Heat flow error (+240). 45619_ =WLQ0TPE9AAT7YRQP3B&MGZYQOZ 45625_ Scrap Engine modifies Hpw. Accelerated Linear Construct/C: Mass -3, Matter Cost -4, Range +3, Min Damage -48, -Penetration Renamed Hvy. Thermic Linear Construct/C. 45628_ Arm. Scrap Engine consumes Hvy. Dispersion Rifle. 45628_ Dropped Graviton Cannon. 45629_ Arm. Scrap Engine consumes Graviton Cannon. 45665_ Scrap Engine modifies Hvy. Thermic Linear Construct/C: Matter Cost -4, Min Damage -6, Range +2, Critical -9, Shot Heat -111 Renamed Hvy. Kinetic Dispersion Construct/C. 45669_ Warped through subspace, drawn to slip node. 45669_ EXIT=FOUND 45674_ 4KIOWN 4D7TD,&8%<=XDGJPH>VDAB1JAQZ [Achievement: 100k Club] [Achievement: 150k Club] Map ----- +----------------------------------------------------+ | | | | | | | | | | | | | | | | | | | | | | | | | | | | | | | | | ?????????????????????????????????????????????????? | | ?????????????????????????????????????????????????? | | ?????????????????????????????????????????????????? | | ?????????????????????????????????????????????????? | | ?????????????????????????????????????????????????? | | ?????????????????????????????????????????????????? | | ????????????????????????###??????????????????????? | | ???????????????????????## ##?????????????????????? | | ???????????????????????# #?????????????????????? | | ???????????????????????# @ #?????????????????????? | | ??????????????????????## #?????????????????????? | | ??????????????????????# #?????????????????????? | | ??????????????????????# ##?????????????????????? | | ??????????????????????## #?????????????????????? | | ??????????????????????# #?????????????????????? | | ??????????????????????# ##?????????????????????? | | ??????????????????????# < #?????????????????????? | | ??????????????????????# ##?????????????????????? | | ??????????????????????## #??????????????????????? | | ???????????????????????####??????????????????????? | | ?????????????????????????????????????????????????? | | ?????????????????????????????????????????????????? | | ?????????????????????????????????????????????????? | | ?????????????????????????????????????????????????? | | ?????????????????????????????????????????????????? | | ?????????????????????????????????????????????????? | | ?????????????????????????????????????????????????? | | ?????????????????????????????????????????????????? | | ?????????????????????????????????????????????????? | | ?????????????????????????????????????????????????? | | ?????????????????????????????????????????????????? | | ?????????????????????????????????????????????????? | | ?????????????????????????????????????????????????? | | ?????????????????????????????????????????????????? | +----------------------------------------------------+ Best States ------------- Heat Dissipation 90 Coolant Potential 65 Energy Generation 122 Energy Capacity 3703 Matter Stores 300 Matter Capacity 300 Sight Range 23 Robot Scan Range 18 Terrain Scan Density 10 Jamming Range 14 Cloak Strength 6 Armor Coverage 450 Propulsion Shielding 90 Weapon Shielding 90 Weapon Cycling 30 Phase Shifting 25 Evasion (%) 80 Targeting Accuracy 36 Core Analysis 12 Recoil Reduction 6 Offensive Hacking 50 Item Schematics ----------------- Flak Cannon | -8/Materials | Scanalyzed Gatling Laser | -8/Recycling | Hacked Adv. Targeting Computer | -8/Recycling | Hacked Combat Drone Bay | -6/Data Miner | Free Lgt. Regenerative Plating | -6/Data Miner | Free Cld. Nuclear Pulse Thruster | -6/Data Miner | Free Imp. Energy Well | -6/Data Miner | Free Enh. Coil Gun | -6/Data Miner | Free Imp. Antigrav System | -6/Data Miner | Free Adv. Cryofiber Web | -6/Data Miner | Free Hvy. Disruptor Cannon | -6/Data Miner | Free Imp. Kinecellerator | -6/Data Miner | Free Graphene Brace | -6/Data Miner | Free Adv. Power Amplifier | -6/Data Miner | Free Linear Accelerator | -6/Data Miner | Free Imp. Heavy Siege Treads | -6/Data Miner | Free Exp. Terrain Scan Processor | -3/Testing | Archive Com. Particle Reactor | -3/Testing | Archive Exp. Transmission Jammer | -2/Quarantine | Archive Multireflex Exoskeleton | -2/Quarantine | Archive Hvy. Neutron Cannon | -2/Protoforge | Archive Exp. Power Amplifier | -2/Protoforge | Archive Imp. Q-thruster | -2/Protoforge | Archive Enh. Biometal Leg | -2/Protoforge | Archive Adv. EM Disruption Field | -2/Protoforge | Archive Centrium Heavy Armor Plating | -2/Protoforge | Archive Robot Schematics ------------------ B-60 Warrior | -6/Data Miner | Free S-27 Virus | -6/Data Miner | Free X-72 Disruptor | -6/Data Miner | Free R-10 Processor | -6/Data Miner | Free P-80 Master | -3/Testing | Archive K-01 Serf | -3/Testing | Archive Y-72 Warden | -2/Quarantine | Archive R-06 Scavenger | -2/Protoforge | Archive Fabricated ------------ Flak Cannon | x2 | -6/Factory Flak Cannon | x2 | -6/Factory Gatling Laser | x2 | -3/Research Repaired ---------- Enh. Autogun | 13% | -8/Storage Studied --------- Hvy. Assault Rifle | -8/Materials | Hacked Adv. Treads | -8/Materials | Hacked Imp. Treads | -8/Materials | Hacked Alien Tech Used ----------------- High-powered Transdimensional Reconstructor Subatomic Replicator Integrated Mediator Achievements -------------- 100k Club 150k Club Betrayal Most Foul Bigger Is Better Bumper Bots Dominance Asserted Hammer Time Irresistible Scrap Not So Scrappy Physics Protects Resistances Are Futile Scrappetite Sprinter Triple Plus Challenges ------------ None Game ------ Seed MeleeSlugNetwork Manual? 0 Play Time 07:44:47 Cumulative 2210.6 hours Start 2025.10.14 @ 23:31:52 End 2025.10.17 @ 00:17:58 Sessions 7 Manual Loads 0 Difficulty Rogue Special Mode None Game No. 741 Rogue 741 Adventurer 0 Explorer 0 Win Type 1 Total 167 Types 31/19/65/7/1/2/40/1/1/0 Lore% 97 Gallery% 93 Achievement% 64 Wizard Run 0 Options --------- Layout 0 ASCII 0 Keyboard 0 Movement Numpad Keybinds 0 Fullscreen 2 Font 24/Smallcaps Map View 76x50 Zoom Use 0% Tactical HUD 1 Map Filters NONE Filters NONE Steam 1 RUN: 928f48c6-5c40-4a09-acfa-9c0e31b6462e